{"text_format":"1","workbook":"xlsx","n_sheets":21,"sheets":["Cover Page","Contents","Facility Info","Operational Data","Operational Summary","Perf. Form 1","Energy Form 1","Permit Compliance","Improvements","Public Liasion","Residue Quality ","Air (periodic)","Air (CEMS)","HCl","SO2","NOx","TOC","Particulates","CO 95% 10 min","Sheet1","NH3"],"not_rendered":{"charts":7,"images":2,"macros":1,"external_links":0,"defined_names":20,"comments":0,"pivot_tables":0},"unopened":[],"bounds":{"document_bytes":16777216,"sheet_cells":100000,"rows_first":2000,"rows_last":500,"rows_between":2000,"halvings":0,"cell_chars":16384,"cell_head_chars":4096},"cells_cut":0,"cells_raw":0,"read":"whole","date_system":"1900"}

{"sheet":"Cover Page","index":0,"n_rows":53,"n_cols":14,"rows_kept":53,"cut":false,"hidden":false,"merged":[[48,2,48,3],[48,6,48,8],[52,2,52,3],[36,1,36,8],[40,2,40,8],[42,2,42,4],[44,2,44,4],[46,2,46,3],[46,6,46,8],[13,13,18,15],[34,1,34,8],[0,3,5,6],[7,1,23,8],[28,1,28,8],[30,1,30,8],[32,1,32,8]]}
[null,null,null,"Add company logo"]
[null,null,null,null,null,null,null,null,null,null,null,null,null,"Version 20.6 "]
[]
[]
[]
[]
[]
[null,"Add photo"]
[]
[]
[]
[]
[null,null,null,null,null,null,null,null,null,null,null,null,null,"Notes:"]
[null,null,null,null,null,null,null,null,null,null,null,null,null,"This template may require adjustments by individual operators to meet specific reporting requirements as defined in the site Permit(s)"]
[]
[]
[]
[]
[]
[]
[]
[]
[]
[]
[]
[]
[]
[]
[null,"Annual Performance Report 2021"]
[]
[null,"Permit EPR/EP3034SN"]
[]
[null,"Eastcroft Energy from Waste Plant"]
[]
[]
[]
[null,"WasteNotts (Reclamation) Limited"]
[]
[null,"Year:",2021]
[]
[null,"Address:","Incinerator Road, Off Cattle Market Road, Nottingham NG23JH"]
[]
[null,"Tel: ","0115 9869505"]
[]
[null,"Email: ","leigh.hornsby@fccenvironment.co.uk"]
[]
[null,"Prepared by:","Leigh Hornsby",null,null,"Position:","Environment Manager"]
[]
[null,"Approved by:","Tony Cox",null,null,"Position:","General Manager"]
[]
[null,"Version:",1]
[]
[null,"Issue Date:","2022-01-28"]

{"sheet":"Contents","index":1,"n_rows":43,"n_cols":11,"rows_kept":43,"cut":false,"hidden":false,"merged":[[42,0,45,9],[35,1,35,6],[36,1,36,6],[37,1,37,6],[38,1,38,6],[39,1,39,6],[40,1,40,6],[34,1,34,6],[20,1,20,6],[21,1,21,6],[22,1,22,6],[25,1,25,6],[26,1,26,6],[27,1,27,6],[28,1,28,6],[29,1,29,6],[30,1,30,6],[33,1,33,6],[19,1,19,6],[9,1,9,6],[10,1,10,6],[11,1,11,6],[12,1,12,6],[13,1,13,6],[14,1,14,6],[15,1,15,6],[16,1,16,6],[17,1,17,6],[18,1,18,6],[4,10,7,14],[8,1,8,6],[3,1,3,6],[4,1,4,6],[5,1,5,6],[6,1,6,6],[7,1,7,6]]}
[{"$f":"+'Cover Page'!$B$29","v":"Annual Performance Report 2021"},null,null,null,{"$f":"+'Cover Page'!$B$33","v":"Eastcroft Energy from Waste Plant"}]
[]
["Contents",null,null,null,null,null,null,null,null,null,"Notes:"]
["Section","Subject",null,null,null,null,null,"Page ",null,null,"Section references and Page nos. to be inserted"]
[null,"Facility Information",null,null,null,null,null,3,null,null,"Sections and Subjects may require adjustment by individual operators to meet specific reporting requirements as defined in the sites Permit(s)"]
[null,"Operational Summary",null,null,null,null,null,4]
[null,"Operational Data",null,null,null,null,null,5]
[null,"Performance Form 1",null,null,null,null,null,6]
[null,"Energy Form 1",null,null,null,null,null,7]
[null,"Permit Compliance",null,null,null,null,null,8]
[null,"Improvements",null,null,null,null,null,9]
[null,"Public Liasion",null,null,null,null,null,10]
[null,"Residue Quality - Optional",null,null,null,null,null,11]
[null,"Emissions to Air (periodically monitored)",null,null,null,null,null,12]
[null,"Emissions to Air (continuously monitored)",null,null,null,null,null,13]
[null,"Hydrogen Chloride emissions",null,null,null,null,null,14]
[null,"Sulphur Dioxdie emsissions",null,null,null,null,null,15]
[null,"Oxides of Notrigen emissions",null,null,null,null,null,16]
[null,"Total Organic Carbon emissions",null,null,null,null,null,17]
[null,"Particulate Matter emissions",null,null,null,null,null,18]
[null,"Carbon Monoxide emissions",null,null,null,null,null,19]
[null,"Ammonia emissions",null,null,null,null,null,20]
[]
[]
["Version Control"]
["Section","Information",null,null,null,null,null,"Date"]
[]
[]
[]
[]
[]
[]
["Distribution"]
["Copy","Name, Role",null,null,null,null,null,"No."]
[]
[]
[]
[]
[]
[]
[]
[]
["This report is required under the Industrial Emissions Directive’s Article 55(2) requirements on reporting and public information on waste incineration plants and co-incineration plants, which require the operator to produce an annual report on the functioning and monitoring of the plant and make it available to the public. "]

{"sheet":"Facility Info","index":2,"n_rows":22,"n_cols":11,"rows_kept":22,"cut":false,"hidden":false,"merged":[[4,0,17,8],[21,0,53,8],[4,10,13,13],[21,10,30,13]]}
[{"$f":"+'Cover Page'!$B$29","v":"Annual Performance Report 2021"},null,null,null,{"$f":"+'Cover Page'!$B$33","v":"Eastcroft Energy from Waste Plant"}]
[]
["Plant Description and Design",null,null,null,null,null,null,null,null,null,"Notes:"]
[]
["The EfW facility currently comprises two incineration streams each capable of burning up to 11.7 tonnes/hour of municipal and light commercial and industrial waste. The plant has a theoretical capacity of just over 200,000 tonnes per annum; however with planned maintenance the annual throughput is approximately 185,000 tonnes. The site has planning permission to add a third line to the plant which is included in the scope of the Environmental Permit (EP3034SN) but has yet to be developed. \n\nThe facility generates around 50 tonnes of steam per hour with no electrical generation undertaken at the \nEastcroft facility. Steam is exported to a third party (Nottingham City Council, formerly EnviroEnergy) who operate a combined heat and power facility providing electricity and feeding into Nottingham's district heating network.\n",null,null,null,null,null,null,null,null,null,"Include summary of plant design, design capacity, no. of combustion lines, electrical and heat capacity and any other general information that descibes the facility, its location and purpose "]
[]
[]
[]
[]
[]
[]
[]
[]
[]
[]
[]
[]
[]
[]
["Summary of Operational Processes and Procedures"]
[]
["Municipal waste and non-hazardous commercial/industrial/trade waste is delivered to site by lorry and tipped into one of two refuse bunkers inside the tipping hall. Deliveries are typically made from Monday to Saturday morning. Waste is transferred from the bunkers by grab crane into the feed chute of each incinerator stream. Waste is only fed to the incinerator if the temperature is above 850°C. \n\nEach incinerator stream has a moving grate on which the waste is burned, with preheated air being injected \nfrom below the grate. Combustion air is drawn from the tipping hall and boiler hall to reduce odours and dust levels in these areas and fed to the furnace via an air preheater which can raise the temperature of the air up to 160°C. Two auxiliary burners, fired on gas oil, are installed halfway up each combustion chamber to maintain temperatures above the 850°C threshold. The auxiliary burners are also used to pre-heat the incinerators before start up.\n\nAmmonium hydroxide is injected into the furnaces to reduce emissions of nitrogen oxides (this technique is known as selective non-catalytic reduction or SNCR). Hot gases from the combustion chamber pass to a boiler in which steam is raised and sent to the London Road Heat Station (operated by Nottingham City Council, formerly EnviroEnergy) for supply of heat to the district heating system and generation of electricity. Flue gases leaving the boiler are cooled to about 130°C in the economiser to achieve the correct temperature for gas treatment. \n\nIncinerator bottom ash is quenched in water and collected in a residuals bunker inside the building. The silo is emptied regularly and the bottom ash is sent for metal extraction and use as a substitute aggregate. \n\nFly ash entrained within the incinerator exhaust gases, together with any accumulations of dust removed from the walls of the economiser by the shot cleaning system, is treated in the air pollution control equipment.Each incinerator stream has its own dedicated air pollution control equipment. Cooled flue gases leaving the economiser are dosed with a mixture of hydrated lime, activated carbon and recirculated reagent, in order to reduce acid gases (by reaction with the lime), and other substances such as heavy metals and hydrocarbons (by adsorption onto the activated carbon). The exhaust gases and reagent particles are then filtered in a four compartment fabric filter to remove the dust burden. The fabric filters are regularly cleaned by reverse jet pulses, and the collected end product is stored in the APC residue silo. The APC residue silo is regularly emptied and the residue used to treat industrial acidic wastes before final disposal in a suitably licensed landfill site. \n\nThe treated exhaust gases from both streams are discharged via the 91m high stack. The final emissions from the municipal waste incinerator are continuously monitored for particulate matter, sulphur dioxide, nitrogen oxides, carbon monoxide, hydrogen chloride, volatile organic compounds and ammonia prior to entry into the main stack.\n",null,null,null,null,null,null,null,null,null,"Include summary of key processes and procedures such as (but not limited to); waste reception, control rooms, grate, bed and bolier, energy & heat  generation, cooling systems, residue management, emission controls, health and safety systems, maintenance"]

{"sheet":"Operational Data","index":3,"n_rows":65,"n_cols":11,"rows_kept":65,"cut":false,"hidden":false,"merged":[[5,10,6,10],[7,10,18,10],[33,1,38,1],[30,2,30,5],[30,6,30,7],[3,1,3,2],[7,1,19,1],[23,1,26,1],[28,1,29,1],[52,0,56,0]]}
[{"$f":"+'Cover Page'!$B$29","v":"Annual Performance Report 2021"},null,null,null,{"$f":"+'Cover Page'!$B$33","v":"Eastcroft Energy from Waste Plant"}]
[]
["Operational Data",null,null,null,null,null,null,null,null,null,"Notes:"]
["Plant Size",200000,null,"tonnes pa",null,"MWth",null,"MWe",null,null,"* - RDF to include SRF "]
["No. of combustion lines",2,null,"No. of Turbines:",null,0,null,null,null,null,"** - CHP plants only"]
[null,null,null,null,null,null,null,null,null,null,"2020 updates include;  heat in MWh, water in Litres, NCV in MJ/kg"]
["Waste types received","Unit","Q1","Q2","Q3","Q4","Year Total","%"]
["Household / Local Authority","tonnes",46766,39566,36051,44561,{"$f":"SUM(C8:F8)","v":166944},{"$f":"IF(G8>0,G8/$G$18,\"-\")","v":0.89753169107714448},null,null,"Availabiity Definition: 'the availability of a line is to be calculated by the number of hours the line reported Continuously Monitored emission levels to the Regulator through the calendar year divided by the total number of hours in that year. \nThe overall plant availability is calculated as the Mean of all lines in the plant. For clarity this includes periods of Other Than Normal Operating Conditions (OTNOC) and abnormal operation.'  \n\nRationale: The primary function of an Energy from Waste facility is the disposal of waste. It follows therefore that the availability of a plant is determined by the period of time a facility spends undertaking this activity."]
["Commercial & Industrial ",null,4532,3528.46,5312,5687,{"$f":"SUM(C9:F9)","v":19059.46},0.10246830892285552]
["Hazardous ",null,null,null,null,null,0,"-"]
["Clinical",null,null,null,null,null,0,"-"]
["Waste wood (biomass) ",null,null,null,null,null,0,"-"]
["Refuse Derived Fuel * - H'hold/LA",null,null,null,null,null,{"$f":"SUM(C13:F13)","v":0},"-"]
["Refuse Derived Fuel *  - C&I",null,null,null,null,null,0,"-"]
["Other [Please specify]",null,null,null,null,null,0,"-"]
["Other [Please specify]"]
["Other [Please specify]"]
["Total waste received",null,{"$f":"SUM(C8:C17)","v":51298},{"$f":"SUM(D8:D17)","v":43094.46},{"$f":"SUM(E8:E17)","v":41363},{"$f":"SUM(F8:F17)","v":50248},{"$f":"SUM(G8:G17)","v":186003.46},1]
["Rejected Waste ",null,null,null,null,null,{"$f":"SUM(C19:F19)","v":0},{"$f":"IF(G19>0,G19/$G$18,\"-\")","v":"-"}]
["Unprocessed waste transferred out",null,null,null,null,null,{"$f":"SUM(C20:F20)","v":0},{"$f":"IF(G20>0,G20/$G$18,\"-\")","v":"-"}]
["Total waste combusted",null,{"$f":"C18-SUM(C19:C20)","v":51298},{"$f":"D18-SUM(D19:D20)","v":43094.46},41363,50248,{"$f":"SUM(C21:F21)","v":186003.46},{"$f":"IF(G21>0,G21/$G$18,\"-\")","v":1}]
[]
["Energy Useage / Export","Unit","Q1","Q2","Q3","Q4","Year Total","KWh/te"]
["Power Generated","MWh",null,null,null,null,{"$f":"SUM(C24:F24)","v":0},{"$f":"IF(G24>0,G24*1000/$G$21,\"-\")","v":"-"}]
["Power Exported",null,null,null,null,null,{"$f":"SUM(C25:F25)","v":0},{"$f":"IF(G25>0,G25*1000/$G$21,\"-\")","v":"-"}]
["Power Used on site",null,2636,2268,2054,2638,{"$f":"SUM(C26:F26)","v":9596},{"$f":"IF(G26>0,G26*1000/$G$21,\"-\")","v":51.590438156365479}]
["Power Imported",null,2636,2268,2054,2638,9596,{"$f":"IF(G27>0,G27*1000/$G$21,\"-\")","v":51.590438156365479}]
["Parasitic Load","%",{"$f":"IF(C24>0,1-C25/(C24+C27),\"-\")","v":"-"},{"$f":"IF(D24>0,1-D25/(D24+D27),\"-\")","v":"-"},{"$f":"IF(E24>0,1-E25/(E24+E27),\"-\")","v":"-"},{"$f":"IF(F24>0,1-F25/(F24+F27),\"-\")","v":"-"},{"$f":"IF(G24>0,1-G25/(G24+G27),\"-\")","v":"-"}]
["Thermal Energy Produced **","MWh",109375,85427,82247,113811,{"$f":"SUM(C29:F29)","v":390860},{"$f":"IF(G29>0,G29*1000/$G$21,\"-\")","v":2101.3587596703846}]
["Thermal Energy Exported **",null,109375,85427,82247,113811,390860,{"$f":"IF(G30>0,G30*1000/$G$21,\"-\")","v":2101.3587596703846}]
["R1 value",null,null,null,null,null,"Design / Operational / n/a"]
[]
["Waste Disposal & Recovery","Unit","Q1","Q2","Q3","Q4","Year Total","% inputs"]
["APC Residues - produced","tonnes",1161,1018,913,1102,{"$f":"SUM(C34:F34)","v":4194},{"$f":"IF(G34>0,G34/$G$21,\"-\")","v":2.2547967656085539E-2}]
["IBA - produced",null,9743,9119,7743,9645,36250,{"$f":"IF(G35>0,G35/$G$21,\"-\")","v":0.19488884776659532}]
["Metals recycling",null,null,null,null,null,{"$f":"SUM(C36:F36)","v":0},"-"]
["Other",null,0,0,0,0,{"$f":"SUM(C37:F37)","v":0},"-"]
["Other",null,0,0,0,0,0,"-"]
["Other",null,0,0,0,0,0,"-"]
[]
["Raw Material Usage","Unit","Q1","Q2","Q3","Q4","Year Total","kg or Ltr /te"]
["Mains Water","ltrs",708,684,1633,1482,{"$f":"SUM(C42:F42)","v":4507},{"$f":"IF(G42>0,G42/$G$21,\"-\")","v":2.4230732051973659E-2}]
["Other Water","ltrs",null,null,null,null,0,{"$f":"IF(G43>0,G43/$G$21,\"-\")","v":"-"}]
["Ammonia","kgs",140000,120000,100000,155000,515000,2.7687656993047334]
["Urea","kgs",null,null,null,null,{"$f":"SUM(C45:F45)","v":0},"-"]
["Activated Carbon","kgs",25920,26208,26496,26496,105120,0.56515077730274488]
["Lime / hydrated lime","kgs",161064,133736,147421,165940,608161,3.2696219736987691]
["Fuel oil","ltrs",10616,5797,50374,14161,80948,0.43519620548994092]
["Gas","cf",0,0,0,0,0]
["Other",null,0,0,0,0,0]
[]
["Summary ","Line/Unit","Q1","Q2","Q3","Q4","Year Total",null,null,"Hrs in year "]
["Availability of waste combustion by line, hrs",1,2149,1831,1622,2200,{"$f":"SUM(C53:F53)","v":7802},0.89200000000000002,null,8760]
[null,2,2159,1824,1790,2200,7973,0.91100000000000003]
[null,3,null,null,null,null,0,"x %"]
[null,4,null,null,null,null,0,"x %"]
[null,5,null,null,null,null,{"$f":"SUM(C57:F57)","v":0},"x %"]
["Overall Availability, mean avg. of all lines, hrs",null,2154,1828,1706,2200,{"$f":"AVERAGE(G53:G57)","v":3155},0.90149999999999997]
["Hours of turbine operations, hrs",1,null,null,null,null,0,"x %"]
["Hours of turbine operations, hrs",2,null,null,null,null,0,"x %"]
["Hours of heat / steam export",null,4308,3655,3412,4400,15775,{"$f":"IF(B61>0,G60/J53,\"n/a\")","v":"n/a"}]
["Net Calorific Value of waste","MJ/kg",7.8,9.1,8.9,8.8000000000000007,null,"-"]
["Abnormal Events","qty.",null,null,null,null,0,{"$f":"IF(G63>0,\"yes\",\"no\")","v":"no"}]
["Abnormal operation","hours",null,null,null,null,0,{"$f":"+(G64)/J53","v":0}]
["Permit Breaches","qty.",1,null,null,null,1,{"$f":"IF(G65>0,\"yes\",\"no\")","v":"yes"}]

{"sheet":"Operational Summary","index":4,"n_rows":31,"n_cols":11,"rows_kept":31,"cut":false,"hidden":false,"merged":[[4,0,26,8],[30,0,51,8],[4,10,13,13],[30,10,39,13]]}
[{"$f":"+'Cover Page'!$B$29","v":"Annual Performance Report 2021"},null,null,null,{"$f":"+'Cover Page'!$B$33","v":"Eastcroft Energy from Waste Plant"}]
[]
["Summary of Plant Operations and Maintenance during the reporting year",null,null,null,null,null,null,null,null,null,"Notes:"]
[]
["During 2021 the facility ran for 17,775 hours across the 2 lines representing an availability of 90.15% with 186,003 tonnes delivered to site compared to a permit limit of 200,000 tonnes per annum. Nearly all of this waste was delivered by the local authorities of Nottingham and the surrounding area and most other wastes being categorised as municipal (Chapter 20 of the List of Wastes Regulations). \n\nThe facility submitted 1 schedule notification during the year for a half hourly value for Total Organic Carbon of 45.4 mg/m3. No periods of abnormal operation or substantiated complaints were received. \n\nThe plant provided 391 GWh of energy in the form of steam and hot water to the Nottingham City Council (formerly EnviroEnergy) facility who operate a combined heat and power station, providing electricity to private customers, the national grid and providing heating to households and commercial premises through their district heating system. Eastcroft receives all electrical supply and water for the process from the Nottingham City Council facility. \n\nThe main period of downtime related to a planned maintenance period within where both routine maintenance that cannot be undertaken while the plant is operational took place and some major replacements to boiler parts were also undertaken. Further modifications and optimisation to the combustion and other processes were undertaken throughout the year.",null,null,null,null,null,null,null,null,null,"Include summary of key operational and/or mainteanance activity undertaken in the year, such as any major component upgrades and/or replacements "]
[]
[]
[]
[]
[]
[]
[]
[]
[]
[]
[]
[]
[]
[]
[]
[]
[]
[]
[]
[]
[]
[]
[]
["Summary of Residue Handling for the reporting year"]
[]
["Incinerator Bottom Ash (IBA) is sampled 4 times per year for permit compliance purposes, in particular for Total Organic Content where the permit has a limit of 3%. Full compliance was achieved during 2021; no values were above 3% with an average value of 1.2% achieved. \n\nAdditional testing of IBA is undertaken in order to correctly classify the IBA. 24 samples (2 per month) were taken in 2021 to assess for any hazardous content within the IBA. During 2021 all 24 sample results were returned confirming the classification of the IBA as non-hazardous. \n\nAll metals within the IBA are sent along with the non-hazardous IBA to a third party company who operate a permitted facility dedicated to management of bottom ash. Metals are segregated and sent for recycling while the remaining incinerator bottom ash is used as a substitute aggregate material for use within the construction industry.\n\nAir Pollution Control Residues (APCr) formed from the cleaning of the flue gases are also analysed on a quarterly basis, albeit with no limits set within the permit. The APCr is tankered to a permitted treatment site where the material is used to neutralise highly acidic wastes before the resulting residue is sent for disposal.\n",null,null,null,null,null,null,null,null,null,"Include in here a summary of residue handling regimes and destinations "]

{"sheet":"Perf. Form 1","index":5,"n_rows":54,"n_cols":10,"rows_kept":54,"cut":false,"hidden":false,"merged":[[47,0,47,1],[49,0,49,9],[50,0,51,9],[38,0,38,9],[39,0,40,9],[43,0,43,1],[43,2,43,9],[45,0,45,1],[46,0,46,1],[36,0,36,3],[36,4,36,5],[36,7,36,8],[37,0,37,3],[37,4,37,5],[37,7,37,8],[34,0,34,3],[34,4,34,5],[34,7,34,8],[35,0,35,3],[35,4,35,5],[35,7,35,8],[31,0,31,3],[31,7,31,8],[32,0,32,3],[32,4,32,5],[32,7,32,8],[33,0,33,3],[33,4,33,5],[33,7,33,8],[23,0,23,3],[23,4,23,5],[23,6,23,7],[23,8,23,9],[25,0,25,9],[26,0,28,9],[21,0,21,1],[21,2,21,3],[21,4,21,5],[21,6,21,7],[21,8,21,9],[22,0,22,3],[22,4,22,5],[22,6,22,7],[22,8,22,9],[19,0,19,1],[19,2,19,3],[19,4,19,5],[19,6,19,7],[19,8,19,9],[20,0,20,1],[20,2,20,3],[20,4,20,5],[20,6,20,7],[20,8,20,9],[17,0,17,1],[17,2,17,3],[17,4,17,5],[17,6,17,7],[17,8,17,9],[18,0,18,1],[18,2,18,3],[18,4,18,5],[18,6,18,7],[18,8,18,9],[15,0,15,1],[15,2,15,3],[15,4,15,5],[15,6,15,7],[15,8,15,9],[16,0,16,9],[13,0,13,1],[13,2,13,3],[13,4,13,5],[13,6,13,7],[13,8,13,9],[14,0,14,3],[14,4,14,5],[14,6,14,7],[14,8,14,9],[11,0,11,1],[11,2,11,3],[11,4,11,5],[11,6,11,7],[11,8,11,9],[12,0,12,1],[12,2,12,3],[12,4,12,5],[12,6,12,7],[12,8,12,9],[9,0,9,9],[10,0,10,1],[10,2,10,3],[10,4,10,5],[10,6,10,7],[10,8,10,9],[2,0,2,4],[2,6,2,8],[3,1,3,4],[5,3,5,4],[5,6,5,7],[8,0,8,1],[8,2,8,3],[8,4,8,5],[8,6,8,7],[8,8,8,9]]}
[{"$f":"+'Cover Page'!C39","v":2021}," Annual Reporting Performance Form 1"]
[]
[{"$f":"+'Cover Page'!B31","v":"Permit EPR/EP3034SN"},null,null,null,null,"Operator: ",{"$f":"+'Cover Page'!B37","v":"WasteNotts (Reclamation) Limited"}]
["Facility:",{"$f":"+'Cover Page'!B33:I33","v":"Eastcroft Energy from Waste Plant"},null,null,null,"Form:","Performance 1"]
[]
["Reporting  Period from: ",null,null,"2021-01-01",null,"to:","2021-12-31"]
[]
[{"$f":"+A1","v":2021},"Annual Reporting of Waste Disposal and Recovery"]
["Waste Description",null,"Disposal Route(s)",null,"Disposal Tonnes",null,"Recovery Tonnes",null,"% / tonne of waste incinerated"]
["1) Hazardous Wastes"]
["APC Residues",null,"D13",null,4227.0999999999967,null,null,null,{"$f":"IF((E11+G11)>0,(E11+G11)/'Operational Data'!$G$21, \"-\")","v":2.2725921335011709E-2}]
["IBA",null,null,null,null,null,null,null,{"$f":"IF((E12+G12)>0,(E12+G12)/'Operational Data'!$G$21, \"-\")","v":"-"}]
[null,null,null,null,null,null,null,null,{"$f":"IF((E13+G13)>0,(E13+G13)/'Operational Data'!$G$21, \"-\")","v":"-"}]
[null,null,null,null,null,null,null,null,{"$f":"IF((E14+G14)>0,(E14+G14)/'Operational Data'!$G$21, \"-\")","v":"-"}]
["Total Hazardous Waste",null,null,null,{"$f":"SUM(E11:F14)","v":4227.0999999999967},null,{"$f":"SUM(G11:H14)","v":0},null,{"$f":"IF((E15+G15)>0,(E15+G15)/'Operational Data'!$G$21, \"-\")","v":2.2725921335011709E-2}]
[]
["2) Non-Hazardous Wastes"]
["IBA",null,"R05",null,null,null,36421.550000000068,null,{"$f":"IF((E18+G18)>0,(E18+G18)/'Operational Data'!$G$21, \"-\")","v":0.19581114243788836}]
["Ferrous Metal",null,null,null,null,null,null,null,{"$f":"IF((E19+G19)>0,(E19+G19)/'Operational Data'!$G$21, \"-\")","v":"-"}]
["Process Water",null,null,null,null,null,null,null,{"$f":"IF((E20+G20)>0,(E20+G20)/'Operational Data'!$G$21, \"-\")","v":"-"}]
[null,null,null,null,null,null,null,null,{"$f":"IF((E21+G21)>0,(E21+G21)/'Operational Data'!$G$21, \"-\")","v":"-"}]
[null,null,null,null,null,null,null,null,{"$f":"IF((E22+G22)>0,(E22+G22)/'Operational Data'!$G$21, \"-\")","v":"-"}]
["Total Non-Hazardous Waste",null,null,null,{"$f":"SUM(E18:F22)","v":0},null,{"$f":"SUM(G18:H22)","v":36421.550000000068},null,{"$f":"IF((E23+G23)>0,(E23+G23)/'Operational Data'!$G$21, \"-\")","v":0.19581114243788836}]
["TOTAL WASTE",null,null,null,{"$f":"+E23+E15","v":4227.0999999999967},null,{"$f":"+G23+G15","v":36421.550000000068},null,{"$f":"IF((E24+G24)>0,(E24+G24)/'Operational Data'!$G$21, \"-\")","v":0.21853706377290008}]
[]
["Operator’s comments :"]
[]
[]
[]
[]
[{"$f":"+A1","v":2021},"Annual Reporting of Water and Other Raw Material Usage"]
["Raw Material",null,null,null,"Usage",null,"Unit","Specific Useage",null,"Unit"]
["Mains Water",null,null,null,{"$f":"+'Operational Data'!G42","v":4507},null,"m3",{"$f":"IF(E33>0,E33/'Operational Data'!$G$21,\"-\")","v":2.4230732051973659E-2},null,"m3/te"]
["Total Water",null,null,null,{"$f":"+'Operational Data'!G43+'Operational Data'!G42","v":4507},null,"m3",{"$f":"IF(E34>0,E34/'Operational Data'!$G$21,\"-\")","v":2.4230732051973659E-2},null,"m3/te"]
["Urea / Ammonia",null,null,null,{"$f":"+'Operational Data'!G44","v":515000},null,"kg",{"$f":"IF(E35>0,E35/'Operational Data'!$G$21,\"-\")","v":2.7687656993047334},null,"kg/te"]
["Activated Carbon",null,null,null,{"$f":"+'Operational Data'!G46","v":105120},null,"kg",{"$f":"IF(E36>0,E36/'Operational Data'!$G$21,\"-\")","v":0.56515077730274488},null,"kg/te"]
["Lime / hydrated lime / Sodium Bicarb.",null,null,null,{"$f":"+'Operational Data'!G47","v":608161},null,"kg",{"$f":"IF(E37>0,E37/'Operational Data'!$G$21,\"-\")","v":3.2696219736987691},null,"kg/te"]
[]
["Operator’s comments :"]
[]
[]
[]
[{"$f":"+A31","v":2021},"Annual Reporting of other performance indicators "]
["Parameter",null,"Results by Line"]
[null,null,"A1","A2","A3","A4","A5",null,"Turbine 1","Turbine 2"]
["Operating hours for the year, hours",null,7802,7973]
["Number of periods of abnormal operation, qty."]
["Cumulative hours of abnormal operation for this year, hours"]
[]
["Operator’s comments :"]
[]
[]
[]
["Signed: ",null,null,null,null,null,"Date:"]

{"sheet":"Energy Form 1","index":6,"n_rows":29,"n_cols":7,"rows_kept":29,"cut":false,"hidden":false,"merged":[[15,0,15,2],[15,3,15,4],[15,6,15,8],[17,0,17,8],[18,0,24,8],[13,0,13,2],[13,3,13,4],[13,6,13,8],[14,0,14,2],[14,3,14,4],[14,6,14,8],[11,0,11,2],[11,3,11,4],[11,6,11,8],[12,0,12,2],[12,3,12,4],[12,6,12,8],[9,0,9,2],[9,3,9,4],[9,6,9,8],[10,0,10,2],[10,3,10,4],[10,6,10,8],[2,6,2,8],[4,1,4,4],[6,3,6,4],[6,6,6,7],[8,0,8,2],[8,3,8,4],[8,6,8,8]]}
[{"$f":"+'Cover Page'!C39","v":2021}," Annual Reporting of Energy Usage/Export"]
[]
[{"$f":"+'Cover Page'!B31","v":"Permit EPR/EP3034SN"},null,null,null,null,"Operator: ",{"$f":"+'Cover Page'!B37","v":"WasteNotts (Reclamation) Limited"}]
[]
["Facility:",{"$f":"+'Cover Page'!B33:I33","v":"Eastcroft Energy from Waste Plant"},null,null,null,"Form:","Energy 1"]
[]
["Reporting  Period from: ",null,null,{"$f":"+'Perf. Form 1'!D6:E6","v":"2021-01-01"},null,"to:",{"$f":"+'Perf. Form 1'!G6:H6","v":"2021-12-31"}]
[]
["Energy Source",null,null,"Energy Usage",null,"Unit","Specific Useage (KWh/tonne incinerated"]
["Electricity Produced",null,null,{"$f":"+'Operational Data'!G24","v":0},null,"MWh",{"$f":"+'Operational Data'!H24","v":"-"}]
["Electricity Imported   ",null,null,{"$f":"+'Operational Data'!G27","v":9596},null,"MWh",{"$f":"+'Operational Data'!H27","v":51.590438156365479}]
["Electricity Exported",null,null,{"$f":"+'Operational Data'!G25","v":0},null,"MWh",{"$f":"+'Operational Data'!H25","v":"-"}]
["Gas Oil",null,null,66.400000000000006,null,"tonnes"]
["Steam/hot water exported",null,null,{"$f":"+'Operational Data'!G30","v":390860},null,"GWh",{"$f":"+'Operational Data'!H30","v":2101.3587596703846}]
[]
[]
[]
["Operator’s comments :"]
["Eastcroft sends steam to a third party who operate a combined heat and power facility and thus no \nelectricity generation is provided from Eastcroft in the returns and all electricity is imported from the \ncombined heat and power station operators (EnviroEnergy).\n"]
[]
[]
[]
[]
[]
[]
[]
[]
[]
["Signed: ",null,null,null,null,null,"Date:"]

{"sheet":"Permit Compliance","index":7,"n_rows":34,"n_cols":12,"rows_kept":34,"cut":false,"hidden":false,"merged":[[26,0,26,10],[18,0,18,10],[31,1,31,3],[31,4,31,6],[31,7,31,9],[27,1,27,3],[27,4,27,6],[27,7,27,9],[28,1,28,3],[28,4,28,6],[28,7,28,9],[23,1,23,3],[23,4,23,6],[23,7,23,9],[24,1,24,3],[24,4,24,6],[32,1,32,3],[32,4,32,6],[32,7,32,9],[29,1,29,3],[29,4,29,6],[29,7,29,9],[30,1,30,3],[30,4,30,6],[30,7,30,9],[24,7,24,9],[21,1,21,3],[21,4,21,6],[21,7,21,9],[22,1,22,3],[22,4,22,6],[22,7,22,9],[19,1,19,3],[19,4,19,6],[19,7,19,9],[20,1,20,3],[20,4,20,6],[20,7,20,9],[16,2,16,4],[16,5,16,8],[15,2,15,4],[15,5,15,8],[16,0,16,1],[13,5,13,8],[14,0,14,1],[14,2,14,4],[14,5,14,8],[15,0,15,1],[7,0,7,1],[7,2,7,8],[8,0,8,1],[8,2,8,4],[8,5,8,8],[8,11,17,14],[33,4,33,8],[9,0,9,1],[9,2,9,4],[9,5,9,8],[10,0,10,1],[10,2,10,4],[10,5,10,8],[11,0,11,1],[11,2,11,4],[11,5,11,8],[12,0,12,1],[12,2,12,4],[12,5,12,8],[13,0,13,1],[13,2,13,4]]}
[{"$f":"+'Cover Page'!$B$29","v":"Annual Performance Report 2021"},null,null,null,{"$f":"+'Cover Page'!$B$33","v":"Eastcroft Energy from Waste Plant"}]
[]
["Summary of Permit Compliance"]
[]
["Compliance with permit limits for continuously monitored pollutants"]
[]
["The plant met its emission limits as shown in the table below:"]
["Substance",null,"Percentage time compliant during operation",null,null,null,null,null,null,null,null,"Notes:"]
[null,null,"Half-hourly limit",null,null,"Daily limit",null,null,null,null,null,"Report to 2 decimal places, i.e. xx.xx%\n\nPlease provide a brief summary of each notification or non-compliance in the table (rather than just referring to notifications that were sent to the Regulator).  \n\n"]
["Particulates",null,1,null,null,1]
["Oxides of nitrogen",null,1,null,null,1]
["Sulphur dioxide",null,1,null,null,1]
["Carbon monoxide",null,"\n100.00% 95% of 10-min averages",null,null,1]
["Total organic carbon",null,0.99990000000000001,null,null,1]
["Hydrogen chloride",null,1,null,null,1]
["Hydrogen fluoride",null,1,null,null,1]
[null,null,"xx.xx %",null,null,"xx.xx %"]
[]
["Summary of any notifications or non-compliances under the permit"]
["Date","Summary of notification or non-compliance [including Line/Reference]",null,null,"Reason ",null,null,"Measures taken to prevent reoccurrence"]
["2021-03-18","Line 2 half hourly TOC value of 45.4 against limit of 20",null,null,"Substance within waste",null,null,"Communication with waste suppliers"]
[]
[]
[]
[]
[]
["Summary of any complaints received and actions to taken to resolve them."]
["Date","Summary of complaint [including Line/Reference]",null,null,"Reason *",null,null,"Measures taken to prevent reoccurrence"]
["2021-08-11","Odour Complaint",null,null,"Unsubstantiated - source not relating to site operations",null,null,"N/A"]
[]
[]
[]
[]
[null,null,null,null,"* including whether substantiated by the operator or the EA"]

{"sheet":"Improvements","index":8,"n_rows":39,"n_cols":5,"rows_kept":39,"cut":false,"hidden":false,"merged":[[37,0,37,9],[38,0,47,9],[4,0,4,9],[5,0,13,9],[15,0,15,9],[16,0,24,9],[26,0,26,9],[27,0,35,9]]}
[{"$f":"+'Cover Page'!$B$29","v":"Annual Performance Report 2021"},null,null,null,{"$f":"+'Cover Page'!$B$33","v":"Eastcroft Energy from Waste Plant"}]
[]
["Summary of Plant Improvements"]
[]
["Summary of any efficiency improvements that have been completed within the year."]
["Work to optimise the combustion control system and reagent dosing systems continued throughout 2021\n along with routine maintenance as per the sites maintenance schedule. Works to improve energy efficiency by replacing lighting with LED units began and will continue into 2022."]
[]
[]
[]
[]
[]
[]
[]
[]
[]
["Summary of any permit improvement conditions that have been completed within the year and the resulting environmental benefits."]
["All improvement conditions relating to the existing facility have been completed in advance of 2021.\n improvement conditions remain within the current permit, these relate to the potential expansion of the facility \nand the addition of a third line. These conditions cannot be progress further until plans for the development of a\n third line have been concluded."]
[]
[]
[]
[]
[]
[]
[]
[]
[]
["Summary of any changes to the plant or operating techniques which required a variation to the permit and a summary of the resulting environmental impact."]
["No changes have been undertaken that require a permit variation. Over the next year as part of the BREF implementation \nprocess there will be variations required to update the permit to incorporate the latest requirements of the Waste \nIncineration BREF."]
[]
[]
[]
[]
[]
[]
[]
[]
[]
["Summary of any other improvements made to the plant or planned to be made and a summary of the resulting environmental benefits."]
["Plans continue to develop a third line for the facility to divert further waste from landfill. Other modifications to the control \nsystems for the plant will be undertaken to ensure compliance can continue to be achieved with the implementation of \nthe revised Waste Incineration BREF and the lower emission limit values this will introduce."]

{"sheet":"Public Liasion","index":9,"n_rows":29,"n_cols":5,"rows_kept":29,"cut":false,"hidden":false,"merged":[[23,0,24,1],[23,2,24,9],[25,0,26,1],[25,2,26,9],[28,0,28,9],[17,0,18,1],[17,2,18,9],[19,0,20,1],[19,2,20,9],[21,0,22,1],[21,2,22,9],[16,0,16,1],[16,2,16,9],[5,0,5,1],[5,2,5,9],[6,0,7,1],[6,2,7,9],[8,0,9,1],[8,2,9,9],[10,0,11,1],[10,2,11,9],[12,0,13,1],[12,2,13,9],[15,0,15,9]]}
[{"$f":"+'Cover Page'!$B$29","v":"Annual Performance Report 2021"},null,null,null,{"$f":"+'Cover Page'!$B$33","v":"Eastcroft Energy from Waste Plant"}]
[]
["Details of Public & Stakeholder Liasion"]
[]
["Summary of events held during the reporting year."]
["Date",null,"Description"]
["2021-10-06",null,"Community Liaison Group Meeting"]
[]
[2021,null,"Other planned meetings suspended due to COVID19"]
[]
[]
[]
[]
[]
[]
["List of events planned for next year"]
["Date",null,"Description"]
["2022-04-01",null,"Planned meeting for January 2022 rescheduled to April due to COVID19"]
[]
[]
[]
[]
[]
[]
[]
[]
[]
[]
["If you wish to be involved in the public liasion programme, please contact info.eastcroft@fccenvironment.co.uk 0115 9869505 or visit https://eastcroft.fccenvironment.co.uk/contact-us/ "]

{"sheet":"Residue Quality ","index":10,"n_rows":36,"n_cols":6,"rows_kept":36,"cut":false,"hidden":false,"merged":[[35,0,40,6],[32,3,32,4],[34,0,34,6],[27,0,28,1],[29,0,29,1],[30,0,30,1],[31,0,31,1],[32,0,32,1],[29,3,29,4],[30,3,30,4],[29,5,29,6],[30,5,30,6],[31,5,31,6],[32,5,32,6],[20,0,21,1],[20,2,21,6],[22,0,23,1],[22,2,23,6],[31,3,31,4],[27,2,28,2],[28,3,28,4],[28,5,28,6],[27,3,27,6],[26,0,26,6],[5,0,6,6],[7,0,8,6],[9,0,10,6],[14,0,15,1],[14,2,15,6],[16,0,17,1],[16,2,17,6],[18,0,19,1],[18,2,19,6],[12,0,12,6],[13,0,13,1],[13,2,13,6]]}
[{"$f":"+'Cover Page'!$B$29","v":"Annual Performance Report 2021"},null,null,null,{"$f":"+'Cover Page'!$B$33","v":"Eastcroft Energy from Waste Plant"}]
[]
["Residue Quality Monitoring Requirements"]
[]
["Summary of monitoring undertaken and compliance"]
["Monitoring of residues for permit compliance was undertaken with full compliance to the residue limit recorded. No specific events were recorded during 2021.\n"]
[]
[" 24 samples taken and analysed as per the ESA protocol were returned demonstrating that the Incinerator \nBottom Ash should be classified as non-hazardous. "]
[]
[]
[]
[]
["Commentary on any specific events"]
["Date & Event",null,"Description"]
[]
[]
[]
[]
[]
[]
[]
[]
[]
[]
[]
[]
["Residue Quality Monitoring Results"]
["Parameter (unit) ",null,"Limit","Normal Operation "]
[null,null,null,"Bottom ash  ",null,"APC Residues"]
["Loss on Ignition (average %)",null,"<5%","N/A"]
["Total Organic Carbon (average %)",null,"<3%",1.24]
["No. of Assessments Undertaken",null,"---",24,null,4]
["No. of Hazardous Results",null,"---",0]
[]
["Comments :"]
["NB. 24 results relate to assessment against the WM3 criteria, 4 assessments were undertaken \nfor compliance purposes."]

{"sheet":"Air (periodic)","index":11,"n_rows":39,"n_cols":13,"rows_kept":39,"cut":false,"hidden":false,"merged":[[18,3,18,4],[27,3,27,4],[33,3,33,4],[19,3,19,4],[20,3,20,4],[21,3,21,4],[22,3,22,4],[23,3,23,4],[24,3,24,4],[31,3,31,4],[25,3,25,4],[26,3,26,4],[28,3,28,4],[13,3,13,4],[14,3,14,4],[15,3,15,4],[16,3,16,4],[17,3,17,4],[38,0,38,9],[19,0,19,1],[20,0,20,1],[21,0,21,1],[34,3,34,4],[35,3,35,4],[33,0,33,1],[34,0,34,1],[35,0,35,1],[36,0,36,1],[24,0,24,1],[32,3,32,4],[39,0,40,9],[25,0,25,1],[26,0,26,1],[22,0,22,1],[23,0,23,1],[37,0,37,1],[27,0,27,1],[28,0,28,1],[29,0,29,1],[30,0,30,1],[31,0,31,1],[32,0,32,1],[37,3,37,4],[29,3,29,4],[30,3,30,4],[36,3,36,4],[16,0,16,1],[17,0,17,1],[18,0,18,1],[13,0,13,1],[14,0,14,1],[15,0,15,1],[12,0,12,1],[11,3,11,4],[12,3,12,4],[9,0,10,1],[9,5,9,9],[9,3,10,4],[9,2,10,2],[5,12,8,15],[9,12,11,15],[8,0,8,9],[5,0,6,9],[11,0,11,1]]}
[{"$f":"+'Cover Page'!$B$29","v":"Annual Performance Report 2021"},null,null,null,{"$f":"+'Cover Page'!$B$33","v":"Eastcroft Energy from Waste Plant"}]
[]
["Emissions to Air (periodically monitored)"]
[]
["Summary of monitoring undertaken, standards used and compliance",null,null,null,null,null,null,null,null,null,null,null,"Notes:"]
[null,null,null,null,null,null,null,null,null,null,null,null,"Template may require adjustment for any bespoke monitoring requirements of permit. "]
[]
[]
["Results of emissions to air that are periodically monitored"]
["Substance",null,"Ref. Period","Emission Limit Value",null,"Average",null,null,null,null,null,null,"User to add additional tables as necessary, depending on whether quarterly or bi-annual reporting is required for the compliance year"]
[null,null,null,null,null,"A1","A2","A3","A4","A5"]
["Hydrogen fluoride",null,"1 hr","2 mg/m3",null,0.21,0.16]
["Cd and Th and their compounds",null,"6-8hrs","0.05 mg/m3",null,8.9999999999999998E-4,5.9999999999999995E-4]
["Hg and its compounds",null,"6-8hrs","0.05 mg/m3",null,2.5000000000000001E-4,5.0000000000000001E-4]
["Sb, As, Pb, Cr, Co, Cu, Mn, Ni, V and their compounds",null,"6-8hrs","0.5 mg/m3",null,2.8000000000000001E-2,1.4999999999999999E-2]
["Dioxins & Furans (I-TEQ)",null,"6-8hrs","0.1 ng/m3",null,6.9999999999999999E-4,1E-3]
["PCBs (WHO-TEQ Humans / Mammals)",null,"6-8hrs","None set ng/m3",null,5.0000000000000002E-5,6.0000000000000002E-5]
["PCBs (WHO-TEQ Fish)",null,"6-8hrs","None set ng/m3",null,3.4999999999999997E-5,6.0000000000000002E-6]
["PCBs (WHO-TEQ Birds)",null,"6-8hrs","None set ng/m3",null,2.9999999999999997E-4,4.0000000000000002E-4]
["Dioxins & Furans (WHO-TEQ Humans / Mammals)",null,"6-8hrs","None set ng/m3",null,8.9999999999999998E-4,8.9999999999999998E-4]
["Dioxins & Furans (WHO-TEQ Fish)",null,"6-8hrs","None set ng/m3",null,6.9999999999999999E-4,1E-3]
["Dioxins & Furans (WHO-TEQ Birds)",null,"6-8hrs","None set ng/m3",null,8.0000000000000004E-4,1.6999999999999999E-3]
["Anthanthrene",null,"6-8hrs","None set µg/m3",null,"<0.0017","<0.0017"]
["Benzo(a)anthracene",null,"6-8hrs","None set µg/m3",null,"<0.0017",3.0000000000000001E-3]
["Benzo(a)pyrene",null,"6-8hrs","None set µg/m3",null,4.0000000000000001E-3,"<0.0017"]
["Benzo(b)fluoranthene",null,"6-8hrs","None set µg/m3",null,5.4999999999999997E-3,1E-3]
["Benzo(b)naptho(2,1-d) thiophene",null,"6-8hrs","None set µg/m3",null,2.5000000000000001E-3,1.9E-3]
["Benzo(c)phenanthrene",null,"6-8hrs","None set µg/m3",null,"<0.0017","<0.0017"]
["Benzo(ghi)perylene",null,"6-8hrs","None set µg/m3",null,3.7000000000000002E-3,5.8999999999999999E-3]
["Benzo(k)fluoranthene",null,"6-8hrs","None set µg/m3",null,"<0.0017",1.9E-3]
["Cholanthrene",null,"6-8hrs","None set µg/m3",null,"<0.0017","<0.0017"]
["Chrysene",null,"6-8hrs","None set µg/m3",null,5.8999999999999999E-3,2.5000000000000001E-2]
["Cyclopenta(cd)pyrene",null,"6-8hrs","None set µg/m3",null,5.8999999999999999E-3,4.4000000000000003E-3]
["Dibenzo(ai)pyrene",null,"6-8hrs","None set µg/m3",null,"<0.0018","<0.0017"]
["Dibenzo(ah)anthracene",null,"6-8hrs","None set µg/m3",null,"<0.0017","<0.0017"]
["Fluoranthene",null,"6-8hrs","None set µg/m3",null,0.09,6.5000000000000002E-2]
["Indeno(123-cd) pyrene",null,"6-8hrs","None set µg/m3",null,1.9E-3,3.3999999999999998E-3]
["Naphthalene",null,"6-8hrs","None set µg/m3",null,0.16,0.14499999999999999]
["Comments :"]

{"sheet":"Air (CEMS)","index":12,"n_rows":28,"n_cols":16,"rows_kept":28,"cut":false,"hidden":false,"merged":[[26,0,26,12],[28,0,29,12],[13,0,14,0],[5,0,6,12],[7,0,8,12],[10,0,10,12],[11,0,12,0],[11,2,12,2],[11,1,12,1],[11,3,11,4],[11,5,11,6],[11,7,11,8],[11,9,11,10],[11,11,11,12]]}
[{"$f":"+'Cover Page'!$B$29","v":"Annual Performance Report 2021"},null,null,null,null,null,null,null,{"$f":"+'Cover Page'!$B$33","v":"Eastcroft Energy from Waste Plant"}]
[]
["Emissions to Air (continously monitored)"]
[null,null,null,null,null,null,null,null,null,null,null,null,null,null,null,"Notes:"]
["Summary of monitoring undertaken, standards used and compliance",null,null,null,null,null,null,null,null,null,null,null,null,null,null,"Template may require adjustment for any bespoke monitoring requirements of permit"]
[null,null,null,null,null,null,null,null,null,null,null,null,null,null,null,"Report to 2 decimal places, i.e. xx.xx%"]
[]
[]
[]
[]
["Results of emissions to air that are continuously monitored (maximum and average values for each line)"]
["Substance","Reference Period","Emission Limit Value","A1",null,"A2",null,"A3",null,"A4",null,"A5"]
[null,null,null,"Max.","Avg.","Max.","Avg.","Max.","Avg.","Max.","Avg.","Max.","Avg."]
["Oxides of nitrogen","Daily mean","200 mg/m3 ",178.3,158,182.9,154.35]
[null,"½ hourly mean","400 mg/m3 ",253.5,157,293.2,154.43]
["Particulates","Daily mean","10 mg/m3",1.6,0.36,2,0.38]
[null,"½ hourly mean","30 mg/m3 ",5.9,0.41,13.1,0.44]
["Total Organic Carbon ","Daily mean","10 mg/m3 ",1.3,0.59,1.3,0.59]
[null,"½ hourly mean","20 mg/m3 ",18.5,0.64,18.5,0.46]
["Hydrogen chloride ","Daily mean","10 mg/m3 ",6.4,3.47,6.9,3.69]
[null,"½ hourly mean","60 mg/m3 ",33.1,3.52,29.9,3.74]
["Sulphur dioxide","Daily mean","50 mg/m3 ",32.5,15.31,37.200000000000003,13.53]
[null,"½ hourly mean","200 mg/m3 ",87,15.39,104.9,13.62]
["Carbon monoxide ","Daily mean","50 mg/m3 ",17.3,7.99,15.4,7.2]
[null,"95%ile 10-min avg ","150 mg/m3 ",39.299999999999997,8.01,36.4,8.08]
[" Ammonia","Daily mean","No limit set",6,0.97,26.5,1.1000000000000001]
["* = delete or amend as appropriate"]
["Comments :"]

{"sheet":"HCl","index":13,"n_rows":79,"n_cols":17,"rows_kept":79,"cut":false,"hidden":false,"merged":[[12,16,15,18],[51,9,63,9],[66,9,78,9],[4,9,4,14],[4,1,4,3],[4,4,4,6],[48,0,51,6],[47,0,47,6],[6,9,18,9],[21,9,33,9],[36,9,48,9],[3,16,7,18],[9,16,11,18]]}
[{"$f":"+'Cover Page'!$B$29","v":"Annual Performance Report 2021"},null,null,null,{"$f":"+'Cover Page'!$B$33","v":"Eastcroft Energy from Waste Plant"}]
[]
["Monitoring of Hydrogen Chloride emissions",null,null,"Whole Installation",null,null,"See  Notes in Cell Q3",null,null,{"$f":"+A3","v":"Monitoring of Hydrogen Chloride emissions"},null,null,null,"Per Combustion Line",null,null,"Notes:"]
[null,null,null,null,null,null,null,null,null,null,null,null,null,null,null,null,"User to add logic to complete Whole installation, Table A5:G18. From the data in Per Combustion Line, Table J6:O79, subject to No. of lines installed"]
["mg/Nm3","1/2 Hourly Reference Periods",null,null,"Daily Reference Periods"]
[{"$f":"+'Cover Page'!C39","v":2021},"1/2 hourly HCl ELV","Monthly 1/2 hourly mean","Highest 1/2 hourly maximum","Daily HCl ELV","Monthly daily mean","Highest daily maximum",null,null,{"$f":"+A6","v":2021},"mg/Nm3","Monthly 1/2 hourly mean","Monthly 1/2 hourly maximum","Monthly daily mean","Monthly daily maximum"]
["Jan",60,{"$f":"(L7+L22)/2","v":2.5},4.5999999999999996,10,{"$f":"(N7+N22)/2","v":2.4500000000000002},3.3,null,null,"A1","Jan",2.6,4,2.6,3.3]
["Feb",60,{"$f":"(L8+L23)/2","v":1.9},33.1,10,{"$f":"(N8+N23)/2","v":1.9},2.7,null,null,null,"Feb",1.9,33.1,1.9,2.7]
["Mar",60,3.05,29.9,10,3.05,3.6,null,null,null,"Mar",3.2,6.7,3.2,3.6,null,"Whole Installation table A5:G18:"]
["Apr",60,3.35,6.9,10,3.25,3.7,null,null,null,"Apr",3.5,6.9,3.4,3.7,null,"Mean: for 1/2 hourly and daily periods calculate mean of values across all operational combustion lines for the month"]
["May",60,3.25,6.2,10,3.2,3.6,null,null,null,"May",3.3,6.2,3.3,3.6]
["Jun",60,3.25,6.4,10,3.15,3.6,null,null,null,"Jun",3.4,4.5,3.3,3.6]
["Jul",60,3.05,7.6,10,2.95,4.5,null,null,null,"Jul",2.2999999999999998,3.5,2.1,2.7,null,"Maximum: for 1/2 hourly and daily periods use the highest value across all operational combustion lines for the month"]
["Aug",60,3.95,8.1999999999999993,10,3.9,4.5999999999999996,null,null,null,"Aug",4.2,8,4.0999999999999996,4.5999999999999996]
["Sep",60,4.7,13.9,10,4.6500000000000004,6.9,null,null,null,"Sep",4.7,13.9,4.7,6.4]
["Oct",60,5.25,26.2,10,5.15,6.9,null,null,null,"Oct",4.5,12.2,4.4000000000000004,5]
["Nov",60,4.8000000000000007,14.3,10,4.8000000000000007,6,null,null,null,"Nov",4.4000000000000004,6.6,4.4000000000000004,5.0999999999999996]
["Dec",60,4.5,7.3,10,4.5,5.6,null,null,null,"Dec",4.2,7,4.2,5]
[null,null,null,null,null,null,null,null,null,null,"Annual",{"$f":"AVERAGE(L7:L18)","v":3.5166666666666662},{"$f":"MAX(M7:M18)","v":33.1},{"$f":"AVERAGE(N7:N18)","v":3.4666666666666668},{"$f":"MAX(O7:O18)","v":6.4}]
[]
[null,null,null,null,null,null,null,null,null,{"$f":"+A6","v":2021},"mg/Nm3","Monthly 1/2 hourly mean","Monthly 1/2 hourly maximum","Monthly daily mean","Monthly daily maximum"]
[null,null,null,null,null,null,null,null,null,"A2","Jan",2.4,4.5999999999999996,2.2999999999999998,3]
[null,null,null,null,null,null,null,null,null,null,"Feb",1.9,5,1.9,2.7]
[null,null,null,null,null,null,null,null,null,null,"Mar",2.9,29.9,2.9,3.3]
[null,null,null,null,null,null,null,null,null,null,"Apr",3.2,5.8,3.1,3.4]
[null,null,null,null,null,null,null,null,null,null,"May",3.2,6.2,3.1,3.4]
[null,null,null,null,null,null,null,null,null,null,"Jun",3.1,6.4,3,3.2]
[null,null,null,null,null,null,null,null,null,null,"Jul",3.8,7.6,3.8,4.5]
[null,null,null,null,null,null,null,null,null,null,"Aug",3.7,8.1999999999999993,3.7,4.4000000000000004]
[null,null,null,null,null,null,null,null,null,null,"Sep",4.7,10.7,4.5999999999999996,6.9]
[null,null,null,null,null,null,null,null,null,null,"Oct",6,26.2,5.9,6.9]
[null,null,null,null,null,null,null,null,null,null,"Nov",5.2,14.3,5.2,6]
[null,null,null,null,null,null,null,null,null,null,"Dec",4.8,7.3,4.8,5.6]
[null,null,null,null,null,null,null,null,null,null,"Annual",{"$f":"AVERAGE(L22:L33)","v":3.7416666666666667},{"$f":"MAX(M22:M33)","v":29.9},{"$f":"AVERAGE(N22:N33)","v":3.6916666666666664},{"$f":"MAX(O22:O33)","v":6.9}]
[]
[null,null,null,null,null,null,null,null,null,{"$f":"+A6","v":2021},"mg/Nm3","Monthly 1/2 hourly mean","Monthly 1/2 hourly maximum","Monthly daily mean","Monthly daily maximum"]
[null,null,null,null,null,null,null,null,null,"A3","Jan"]
[null,null,null,null,null,null,null,null,null,null,"Feb"]
[null,null,null,null,null,null,null,null,null,null,"Mar"]
[null,null,null,null,null,null,null,null,null,null,"Apr"]
[null,null,null,null,null,null,null,null,null,null,"May"]
[null,null,null,null,null,null,null,null,null,null,"Jun"]
[null,null,null,null,null,null,null,null,null,null,"Jul"]
[null,null,null,null,null,null,null,null,null,null,"Aug"]
[null,null,null,null,null,null,null,null,null,null,"Sep"]
[null,null,null,null,null,null,null,null,null,null,"Oct"]
[null,null,null,null,null,null,null,null,null,null,"Nov"]
["Comments :",null,null,null,null,null,null,null,null,null,"Dec"]
[null,null,null,null,null,null,null,null,null,null,"Annual",{"$f":"AVERAGE(L37:L48)","v":{"$error":"#DIV/0!"}},{"$f":"MAX(M37:M48)","v":0},{"$f":"AVERAGE(N37:N48)","v":{"$error":"#DIV/0!"}},{"$f":"MAX(O37:O48)","v":0}]
[]
[null,null,null,null,null,null,null,null,null,{"$f":"+A6","v":2021},"mg/Nm3","Monthly 1/2 hourly mean","Monthly 1/2 hourly maximum","Monthly daily mean","Monthly daily maximum"]
[null,null,null,null,null,null,null,null,null,"A4","Jan"]
[null,null,null,null,null,null,null,null,null,null,"Feb"]
[null,null,null,null,null,null,null,null,null,null,"Mar"]
[null,null,null,null,null,null,null,null,null,null,"Apr"]
[null,null,null,null,null,null,null,null,null,null,"May"]
[null,null,null,null,null,null,null,null,null,null,"Jun"]
[null,null,null,null,null,null,null,null,null,null,"Jul"]
[null,null,null,null,null,null,null,null,null,null,"Aug"]
[null,null,null,null,null,null,null,null,null,null,"Sep"]
[null,null,null,null,null,null,null,null,null,null,"Oct"]
[null,null,null,null,null,null,null,null,null,null,"Nov"]
[null,null,null,null,null,null,null,null,null,null,"Dec"]
[null,null,null,null,null,null,null,null,null,null,"Annual",{"$f":"AVERAGE(L52:L63)","v":{"$error":"#DIV/0!"}},{"$f":"MAX(M52:M63)","v":0},{"$f":"AVERAGE(N52:N63)","v":{"$error":"#DIV/0!"}},{"$f":"MAX(O52:O63)","v":0}]
[]
[null,null,null,null,null,null,null,null,null,{"$f":"+A6","v":2021},"mg/Nm3","Monthly 1/2 hourly mean","Monthly 1/2 hourly maximum","Monthly daily mean","Monthly daily maximum"]
[null,null,null,null,null,null,null,null,null,"A5","Jan"]
[null,null,null,null,null,null,null,null,null,null,"Feb"]
[null,null,null,null,null,null,null,null,null,null,"Mar"]
[null,null,null,null,null,null,null,null,null,null,"Apr"]
[null,null,null,null,null,null,null,null,null,null,"May"]
[null,null,null,null,null,null,null,null,null,null,"Jun"]
[null,null,null,null,null,null,null,null,null,null,"Jul"]
[null,null,null,null,null,null,null,null,null,null,"Aug"]
[null,null,null,null,null,null,null,null,null,null,"Sep"]
[null,null,null,null,null,null,null,null,null,null,"Oct"]
[null,null,null,null,null,null,null,null,null,null,"Nov"]
[null,null,null,null,null,null,null,null,null,null,"Dec"]
[null,null,null,null,null,null,null,null,null,null,"Annual",{"$f":"AVERAGE(L67:L78)","v":{"$error":"#DIV/0!"}},{"$f":"MAX(M67:M78)","v":0},{"$f":"AVERAGE(N67:N78)","v":{"$error":"#DIV/0!"}},{"$f":"MAX(O67:O78)","v":0}]

{"sheet":"SO2","index":14,"n_rows":79,"n_cols":17,"rows_kept":79,"cut":false,"hidden":false,"merged":[[3,16,7,18],[9,16,11,18],[12,16,15,18],[66,9,78,9],[4,1,4,3],[4,4,4,6],[4,9,4,14],[6,9,18,9],[21,9,33,9],[36,9,48,9],[47,0,47,6],[48,0,51,6],[51,9,63,9]]}
[{"$f":"+'Cover Page'!$B$29","v":"Annual Performance Report 2021"},null,null,null,{"$f":"+'Cover Page'!$B$33","v":"Eastcroft Energy from Waste Plant"}]
[]
["Monitoring of Sulphur dioxide emissions",null,null,"Whole Installation",null,null,"See  Notes in Cell Q3",null,null,{"$f":"+A3","v":"Monitoring of Sulphur dioxide emissions"},null,null,null,"Per Combustion Line",null,null,"Notes:"]
[null,null,null,null,null,null,null,null,null,null,null,null,null,null,null,null,"User to add logic to complete Whole installation, Table A5:G18. From the data in Per Combustion Line, Table J6:O79, subject to No. of lines installed"]
["mg/Nm3","1/2 Hourly Reference Periods",null,null,"Daily Reference Periods"]
[{"$f":"+'Cover Page'!C39","v":2021},"1/2 hourly SO2 ELV","Monthly 1/2 hourly mean","Highest 1/2 hourly maximum","Daily SO2 ELV","Monthly daily mean","Highest daily maximum",null,null,{"$f":"+A6","v":2021},"mg/Nm3","Monthly 1/2 hourly mean","Monthly 1/2 hourly maximum","Monthly daily mean","Monthly daily maximum"]
["Jan",200,{"$f":"(L7+L22)/2","v":10.7},56.2,50,{"$f":"(N7+N22)/2","v":10.7},21.3,null,null,"A1","Jan",12.7,56.2,12.7,21.3]
["Feb",200,{"$f":"(L8+L23)/2","v":19.850000000000001},87,50,{"$f":"(N8+N23)/2","v":19.8},31.2,null,null,null,"Feb",21.6,87,21.6,31.2]
["Mar",200,16.05,51,50,16.05,{"$f":"MAX(O9,O24)","v":23.4},null,null,null,"Mar",17.100000000000001,51,17.100000000000001,23.4,null,"Whole Installation table A5:G18:"]
["Apr",200,11.399999999999999,43.4,50,11.399999999999999,{"$f":"MAX(O10,O25)","v":17.3},null,null,null,"Apr",11.2,32.299999999999997,11.2,15.5,null,"Mean: for 1/2 hourly and daily periods calculate mean of values across all operational combustion lines for the month"]
["May",200,11.4,68.8,50,11.4,20.100000000000001,null,null,null,"May",10.8,68.8,10.8,14.6]
["Jun",200,10.350000000000001,32.200000000000003,50,10.25,15.3,null,null,null,"Jun",10.8,32.200000000000003,10.7,15.3]
["Jul",200,22.75,54.4,50,22.25,37.200000000000003,null,null,null,"Jul",27.2,54.4,26.9,32.5,null,"Maximum: for 1/2 hourly and daily periods use the highest value across all operational combustion lines for the month"]
["Aug",200,13,99.2,50,12.95,21.1,null,null,null,"Aug",16.2,38.5,16.2,21.1]
["Sep",200,12.3,27.6,50,12.25,16.7,null,null,null,"Sep",13.6,27.6,13.5,16.7]
["Oct",200,13.65,43.8,50,13.6,18.3,null,null,null,"Oct",12,43.8,12,17.8]
["Nov",200,16.350000000000001,49.3,50,16.350000000000001,23.9,null,null,null,"Nov",15.7,38.6,15.7,22.8]
["Dec",200,16.05,104.9,50,16,23.1,null,null,null,"Dec",15.4,64.3,15.3,18.600000000000001]
[null,null,null,null,null,null,null,null,null,null,"Annual",{"$f":"AVERAGE(L7:L18)","v":15.358333333333333},{"$f":"MAX(M7:M18)","v":87},{"$f":"AVERAGE(N7:N18)","v":15.308333333333332},{"$f":"MAX(O7:O18)","v":32.5}]
[]
[null,null,null,null,null,null,null,null,null,{"$f":"+A6","v":2021},"mg/Nm3","Monthly 1/2 hourly mean","Monthly 1/2 hourly maximum","Monthly daily mean","Monthly daily maximum"]
[null,null,null,null,null,null,null,null,null,"A2","Jan",8.6999999999999993,52,8.6999999999999993,15.4]
[null,null,null,null,null,null,null,null,null,null,"Feb",18.100000000000001,51.2,18,28.8]
[null,null,null,null,null,null,null,null,null,null,"Mar",15,42.8,15,20.8]
[null,null,null,null,null,null,null,null,null,null,"Apr",11.6,43.4,11.6,17.3]
[null,null,null,null,null,null,null,null,null,null,"May",12,39.1,12,20.100000000000001]
[null,null,null,null,null,null,null,null,null,null,"Jun",9.9,29.3,9.8000000000000007,13.5]
[null,null,null,null,null,null,null,null,null,null,"Jul",18.3,47.3,17.600000000000001,37.200000000000003]
[null,null,null,null,null,null,null,null,null,null,"Aug",9.8000000000000007,99.2,9.6999999999999993,15.2]
[null,null,null,null,null,null,null,null,null,null,"Sep",11,26.5,11,14.6]
[null,null,null,null,null,null,null,null,null,null,"Oct",15.3,37.9,15.2,18.3]
[null,null,null,null,null,null,null,null,null,null,"Nov",17,49.3,17,23.9]
[null,null,null,null,null,null,null,null,null,null,"Dec",16.7,104.9,16.7,23.1]
[null,null,null,null,null,null,null,null,null,null,"Annual",{"$f":"AVERAGE(L22:L33)","v":13.616666666666667},{"$f":"MAX(M22:M33)","v":104.9},{"$f":"AVERAGE(N22:N33)","v":13.525},{"$f":"MAX(O22:O33)","v":37.200000000000003}]
[]
[null,null,null,null,null,null,null,null,null,{"$f":"+A6","v":2021},"mg/Nm3","Monthly 1/2 hourly mean","Monthly 1/2 hourly maximum","Monthly daily mean","Monthly daily maximum"]
[null,null,null,null,null,null,null,null,null,"A3","Jan"]
[null,null,null,null,null,null,null,null,null,null,"Feb"]
[null,null,null,null,null,null,null,null,null,null,"Mar"]
[null,null,null,null,null,null,null,null,null,null,"Apr"]
[null,null,null,null,null,null,null,null,null,null,"May"]
[null,null,null,null,null,null,null,null,null,null,"Jun"]
[null,null,null,null,null,null,null,null,null,null,"Jul"]
[null,null,null,null,null,null,null,null,null,null,"Aug"]
[null,null,null,null,null,null,null,null,null,null,"Sep"]
[null,null,null,null,null,null,null,null,null,null,"Oct"]
[null,null,null,null,null,null,null,null,null,null,"Nov"]
["Comments :",null,null,null,null,null,null,null,null,null,"Dec"]
[null,null,null,null,null,null,null,null,null,null,"Annual",{"$f":"AVERAGE(L37:L48)","v":{"$error":"#DIV/0!"}},{"$f":"MAX(M37:M48)","v":0},{"$f":"AVERAGE(N37:N48)","v":{"$error":"#DIV/0!"}},{"$f":"MAX(O37:O48)","v":0}]
[]
[null,null,null,null,null,null,null,null,null,{"$f":"+A6","v":2021},"mg/Nm3","Monthly 1/2 hourly mean","Monthly 1/2 hourly maximum","Monthly daily mean","Monthly daily maximum"]
[null,null,null,null,null,null,null,null,null,"A4","Jan"]
[null,null,null,null,null,null,null,null,null,null,"Feb"]
[null,null,null,null,null,null,null,null,null,null,"Mar"]
[null,null,null,null,null,null,null,null,null,null,"Apr"]
[null,null,null,null,null,null,null,null,null,null,"May"]
[null,null,null,null,null,null,null,null,null,null,"Jun"]
[null,null,null,null,null,null,null,null,null,null,"Jul"]
[null,null,null,null,null,null,null,null,null,null,"Aug"]
[null,null,null,null,null,null,null,null,null,null,"Sep"]
[null,null,null,null,null,null,null,null,null,null,"Oct"]
[null,null,null,null,null,null,null,null,null,null,"Nov"]
[null,null,null,null,null,null,null,null,null,null,"Dec"]
[null,null,null,null,null,null,null,null,null,null,"Annual",{"$f":"AVERAGE(L52:L63)","v":{"$error":"#DIV/0!"}},{"$f":"MAX(M52:M63)","v":0},{"$f":"AVERAGE(N52:N63)","v":{"$error":"#DIV/0!"}},{"$f":"MAX(O52:O63)","v":0}]
[]
[null,null,null,null,null,null,null,null,null,{"$f":"+A6","v":2021},"mg/Nm3","Monthly 1/2 hourly mean","Monthly 1/2 hourly maximum","Monthly daily mean","Monthly daily maximum"]
[null,null,null,null,null,null,null,null,null,"A5","Jan"]
[null,null,null,null,null,null,null,null,null,null,"Feb"]
[null,null,null,null,null,null,null,null,null,null,"Mar"]
[null,null,null,null,null,null,null,null,null,null,"Apr"]
[null,null,null,null,null,null,null,null,null,null,"May"]
[null,null,null,null,null,null,null,null,null,null,"Jun"]
[null,null,null,null,null,null,null,null,null,null,"Jul"]
[null,null,null,null,null,null,null,null,null,null,"Aug"]
[null,null,null,null,null,null,null,null,null,null,"Sep"]
[null,null,null,null,null,null,null,null,null,null,"Oct"]
[null,null,null,null,null,null,null,null,null,null,"Nov"]
[null,null,null,null,null,null,null,null,null,null,"Dec"]
[null,null,null,null,null,null,null,null,null,null,"Annual",{"$f":"AVERAGE(L67:L78)","v":{"$error":"#DIV/0!"}},{"$f":"MAX(M67:M78)","v":0},{"$f":"AVERAGE(N67:N78)","v":{"$error":"#DIV/0!"}},{"$f":"MAX(O67:O78)","v":0}]

{"sheet":"NOx","index":15,"n_rows":79,"n_cols":17,"rows_kept":79,"cut":false,"hidden":false,"merged":[[3,16,7,18],[9,16,11,18],[12,16,15,18],[66,9,78,9],[4,1,4,3],[4,4,4,6],[4,9,4,14],[6,9,18,9],[21,9,33,9],[36,9,48,9],[47,0,47,6],[48,0,51,6],[51,9,63,9]]}
[{"$f":"+'Cover Page'!$B$29","v":"Annual Performance Report 2021"},null,null,null,{"$f":"+'Cover Page'!$B$33","v":"Eastcroft Energy from Waste Plant"}]
[]
["Monitoring of Oxides of Nitrogen emissions",null,null,"Whole Installation",null,null,"See  Notes in Cell Q3",null,null,{"$f":"+A3","v":"Monitoring of Oxides of Nitrogen emissions"},null,null,null,"Per Combustion Line",null,null,"Notes:"]
[null,null,null,null,null,null,null,null,null,null,null,null,null,null,null,null,"User to add logic to complete Whole installation, Table A5:G18. From the data in Per Combustion Line, Table J6:O79, subject to No. of lines installed"]
["mg/Nm3","1/2 Hourly Reference Periods",null,null,"Daily Reference Periods"]
[{"$f":"+'Cover Page'!C39","v":2021},"1/2 hourly NOx ELV","Monthly 1/2 hourly mean","Highest 1/2 hourly maximum","Daily NOx ELV","Monthly daily mean","Highest daily maximum",null,null,{"$f":"+A6","v":2021},"mg/Nm3","Monthly 1/2 hourly mean","Monthly 1/2 hourly maximum","Monthly daily mean","Monthly daily maximum"]
["Jan",400,{"$f":"(L7+L22)/2","v":154.75},{"$f":"MAX(M7,M22)","v":246.2},200,{"$f":"(N7+N22)/2","v":154.75},{"$f":"MAX(O7,O22)","v":169.8},null,null,"A1","Jan",161.4,246.2,161.4,169.8]
["Feb",400,{"$f":"(L8+L23)/2","v":145.5},{"$f":"MAX(M8,M23)","v":212.3},200,{"$f":"(N8+N23)/2","v":145.39999999999998},{"$f":"MAX(O8,O23)","v":171.2},null,null,null,"Feb",147.30000000000001,212.3,147.19999999999999,171.2]
["Mar",400,162.65,244.4,200,162.60000000000002,178.3,null,null,null,"Mar",166.3,244.4,166.3,178.3,null,"Whole Installation table A5:G18:"]
["Apr",400,156.15,212.7,200,156.15,176.5,null,null,null,"Apr",164.3,212.7,164.3,176.5,null,"Mean: for 1/2 hourly and daily periods calculate mean of values across all operational combustion lines for the month"]
["May",400,158.5,239.3,200,158.39999999999998,171.8,null,null,null,"May",162.30000000000001,239.3,162.19999999999999,171.8]
["Jun",400,163.5,217.2,200,163.55000000000001,175.9,null,null,null,"Jun",164.2,217.2,164.4,174.7]
["Jul",400,165.89999999999998,293.2,200,165.64999999999998,182.9,null,null,null,"Jul",168.1,253.5,168.1,174.2,null,"Maximum: for 1/2 hourly and daily periods use the highest value across all operational combustion lines for the month"]
["Aug",400,155.19999999999999,252.1,200,155.15,171.1,null,null,null,"Aug",152.4,224.2,152.4,165]
["Sep",400,152.25,224.2,200,152.35,173.6,null,null,null,"Sep",151.80000000000001,224.2,152,173.6]
["Oct",400,157.75,242.3,200,157.69999999999999,169.7,null,null,null,"Oct",155,222.5,155.1,163.6]
["Nov",400,151.05000000000001,211.8,200,151.05000000000001,165.7,null,null,null,"Nov",151.30000000000001,211.8,151.30000000000001,162.9]
["Dec",400,150.64999999999998,221.7,200,150.75,179.4,null,null,null,"Dec",150.1,221.7,150.1,159.19999999999999]
[null,null,null,null,null,null,null,null,null,null,"Annual",{"$f":"AVERAGE(L7:L18)","v":157.875},{"$f":"MAX(M7:M18)","v":253.5},{"$f":"AVERAGE(N7:N18)","v":157.9},{"$f":"MAX(O7:O18)","v":178.3}]
[]
[null,null,null,null,null,null,null,null,null,{"$f":"+A6","v":2021},"mg/Nm3","Monthly 1/2 hourly mean","Monthly 1/2 hourly maximum","Monthly daily mean","Monthly daily maximum"]
[null,null,null,null,null,null,null,null,null,"A2","Jan",148.1,219.8,148.1,160.69999999999999]
[null,null,null,null,null,null,null,null,null,null,"Feb",143.69999999999999,204.6,143.6,154.4]
[null,null,null,null,null,null,null,null,null,null,"Mar",159,214.7,158.9,173.5]
[null,null,null,null,null,null,null,null,null,null,"Apr",148,191.5,148,165.9]
[null,null,null,null,null,null,null,null,null,null,"May",154.69999999999999,211.1,154.6,165]
[null,null,null,null,null,null,null,null,null,null,"Jun",162.80000000000001,217,162.69999999999999,175.9]
[null,null,null,null,null,null,null,null,null,null,"Jul",163.69999999999999,293.2,163.19999999999999,182.9]
[null,null,null,null,null,null,null,null,null,null,"Aug",158,252.1,157.9,171.1]
[null,null,null,null,null,null,null,null,null,null,"Sep",152.69999999999999,203.2,152.69999999999999,167]
[null,null,null,null,null,null,null,null,null,null,"Oct",160.5,242.3,160.30000000000001,169.7]
[null,null,null,null,null,null,null,null,null,null,"Nov",150.80000000000001,207,150.80000000000001,165.7]
[null,null,null,null,null,null,null,null,null,null,"Dec",151.19999999999999,216.9,151.4,179.4]
[null,null,null,null,null,null,null,null,null,null,"Annual",{"$f":"AVERAGE(L22:L33)","v":154.43333333333334},{"$f":"MAX(M22:M33)","v":293.2},{"$f":"AVERAGE(N22:N33)","v":154.35000000000002},{"$f":"MAX(O22:O33)","v":182.9}]
[]
[null,null,null,null,null,null,null,null,null,{"$f":"+A6","v":2021},"mg/Nm3","Monthly 1/2 hourly mean","Monthly 1/2 hourly maximum","Monthly daily mean","Monthly daily maximum"]
[null,null,null,null,null,null,null,null,null,"A3","Jan"]
[null,null,null,null,null,null,null,null,null,null,"Feb"]
[null,null,null,null,null,null,null,null,null,null,"Mar"]
[null,null,null,null,null,null,null,null,null,null,"Apr"]
[null,null,null,null,null,null,null,null,null,null,"May"]
[null,null,null,null,null,null,null,null,null,null,"Jun"]
[null,null,null,null,null,null,null,null,null,null,"Jul"]
[null,null,null,null,null,null,null,null,null,null,"Aug"]
[null,null,null,null,null,null,null,null,null,null,"Sep"]
[null,null,null,null,null,null,null,null,null,null,"Oct"]
[null,null,null,null,null,null,null,null,null,null,"Nov"]
["Comments :",null,null,null,null,null,null,null,null,null,"Dec"]
[null,null,null,null,null,null,null,null,null,null,"Annual",{"$f":"AVERAGE(L37:L48)","v":{"$error":"#DIV/0!"}},{"$f":"MAX(M37:M48)","v":0},{"$f":"AVERAGE(N37:N48)","v":{"$error":"#DIV/0!"}},{"$f":"MAX(O37:O48)","v":0}]
[]
[null,null,null,null,null,null,null,null,null,{"$f":"+A6","v":2021},"mg/Nm3","Monthly 1/2 hourly mean","Monthly 1/2 hourly maximum","Monthly daily mean","Monthly daily maximum"]
[null,null,null,null,null,null,null,null,null,"A4","Jan"]
[null,null,null,null,null,null,null,null,null,null,"Feb"]
[null,null,null,null,null,null,null,null,null,null,"Mar"]
[null,null,null,null,null,null,null,null,null,null,"Apr"]
[null,null,null,null,null,null,null,null,null,null,"May"]
[null,null,null,null,null,null,null,null,null,null,"Jun"]
[null,null,null,null,null,null,null,null,null,null,"Jul"]
[null,null,null,null,null,null,null,null,null,null,"Aug"]
[null,null,null,null,null,null,null,null,null,null,"Sep"]
[null,null,null,null,null,null,null,null,null,null,"Oct"]
[null,null,null,null,null,null,null,null,null,null,"Nov"]
[null,null,null,null,null,null,null,null,null,null,"Dec"]
[null,null,null,null,null,null,null,null,null,null,"Annual",{"$f":"AVERAGE(L52:L63)","v":{"$error":"#DIV/0!"}},{"$f":"MAX(M52:M63)","v":0},{"$f":"AVERAGE(N52:N63)","v":{"$error":"#DIV/0!"}},{"$f":"MAX(O52:O63)","v":0}]
[]
[null,null,null,null,null,null,null,null,null,{"$f":"+A6","v":2021},"mg/Nm3","Monthly 1/2 hourly mean","Monthly 1/2 hourly maximum","Monthly daily mean","Monthly daily maximum"]
[null,null,null,null,null,null,null,null,null,"A5","Jan"]
[null,null,null,null,null,null,null,null,null,null,"Feb"]
[null,null,null,null,null,null,null,null,null,null,"Mar"]
[null,null,null,null,null,null,null,null,null,null,"Apr"]
[null,null,null,null,null,null,null,null,null,null,"May"]
[null,null,null,null,null,null,null,null,null,null,"Jun"]
[null,null,null,null,null,null,null,null,null,null,"Jul"]
[null,null,null,null,null,null,null,null,null,null,"Aug"]
[null,null,null,null,null,null,null,null,null,null,"Sep"]
[null,null,null,null,null,null,null,null,null,null,"Oct"]
[null,null,null,null,null,null,null,null,null,null,"Nov"]
[null,null,null,null,null,null,null,null,null,null,"Dec"]
[null,null,null,null,null,null,null,null,null,null,"Annual",{"$f":"AVERAGE(L67:L78)","v":{"$error":"#DIV/0!"}},{"$f":"MAX(M67:M78)","v":0},{"$f":"AVERAGE(N67:N78)","v":{"$error":"#DIV/0!"}},{"$f":"MAX(O67:O78)","v":0}]

{"sheet":"TOC","index":16,"n_rows":79,"n_cols":17,"rows_kept":79,"cut":false,"hidden":false,"merged":[[3,16,7,18],[9,16,11,18],[12,16,15,18],[66,9,78,9],[4,1,4,3],[4,4,4,6],[4,9,4,14],[6,9,18,9],[21,9,33,9],[36,9,48,9],[47,0,47,6],[48,0,51,6],[51,9,63,9]]}
[{"$f":"+'Cover Page'!$B$29","v":"Annual Performance Report 2021"},null,null,null,{"$f":"+'Cover Page'!$B$33","v":"Eastcroft Energy from Waste Plant"}]
[]
["Monitoring of Total organic carbon emissions",null,null,"Whole Installation",null,null,"See  Notes in Cell Q3",null,null,{"$f":"+A3","v":"Monitoring of Total organic carbon emissions"},null,null,null,"Per Combustion Line",null,null,"Notes:"]
[null,null,null,null,null,null,null,null,null,null,null,null,null,null,null,null,"User to add logic to complete Whole installation, Table A5:G18. From the data in Per Combustion Line, Table J6:O79, subject to No. of lines installed"]
["mg/Nm3","1/2 Hourly Reference Periods",null,null,"Daily Reference Periods"]
[{"$f":"+'Cover Page'!C39","v":2021},"1/2 hourly TOC ELV","Monthly 1/2 hourly mean","Highest 1/2 hourly maximum","Daily TOC ELV","Monthly daily mean","Highest daily maximum",null,null,{"$f":"+A6","v":2021},"mg/Nm3","Monthly 1/2 hourly mean","Monthly 1/2 hourly maximum","Monthly daily mean","Monthly daily maximum"]
["Jan",20,{"$f":"(L7+L22)/2","v":0.65},{"$f":"MAX(M7,M22)","v":5.4},10,{"$f":"(N7+N22)/2","v":0.65},{"$f":"MAX(O7,O22)","v":1.1000000000000001},null,null,"A1","Jan",0.5,4.8,0.5,0.7]
["Feb",20,{"$f":"(L8+L23)/2","v":0.75},{"$f":"MAX(M8,M23)","v":14.9},10,{"$f":"(N8+N23)/2","v":0.75},{"$f":"MAX(O8,O23)","v":1.1000000000000001},null,null,null,"Feb",0.6,14.9,0.6,1.1000000000000001]
["Mar",20,0.7,45.4,10,0.7,1.9,null,null,null,"Mar",0.5,18.5,0.5,0.7,null,"Whole Installation table A5:G18:"]
["Apr",20,0.7,11.6,10,0.7,1.2,null,null,null,"Apr",0.6,5.9,0.6,1.2,null,"Mean: for 1/2 hourly and daily periods calculate mean of values across all operational combustion lines for the month"]
["May",20,0.9,6.7,10,0.9,1.3,null,null,null,"May",0.9,6.7,0.9,1.3]
["Jun",20,0.95000000000000007,9.3000000000000007,10,0.9,1.3,null,null,null,"Jun",1.1000000000000001,9.3000000000000007,1,1.3]
["Jul",20,0.85000000000000009,7.2,10,0.6,1.4,null,null,null,"Jul",0.8,3.5,0.5,0.9,null,"Maximum: for 1/2 hourly and daily periods use the highest value across all operational combustion lines for the month"]
["Aug",20,0.75,18.600000000000001,10,0.65,1.3,null,null,null,"Aug",0.6,4.9000000000000004,0.5,1]
["Sep",20,0.64999999999999991,5.4,10,0.64999999999999991,1,null,null,null,"Sep",0.6,4.7,0.6,1]
["Oct",20,0.5,7.6,10,0.4,0.8,null,null,null,"Oct",0.5,7.6,0.4,0.6]
["Nov",20,0.45,17.600000000000001,10,0.45,0.9,null,null,null,"Nov",0.5,3.9,0.5,0.6]
["Dec",20,0.5,14.6,10,0.45,0.7,null,null,null,"Dec",0.5,6.2,0.5,0.7]
[null,null,null,null,null,null,null,null,null,null,"Annual",{"$f":"AVERAGE(L7:L18)","v":0.64166666666666661},{"$f":"MAX(M7:M18)","v":18.5},{"$f":"AVERAGE(N7:N18)","v":0.59166666666666667},{"$f":"MAX(O7:O18)","v":1.3}]
[]
[null,null,null,null,null,null,null,null,null,{"$f":"+A6","v":2021},"mg/Nm3","Monthly 1/2 hourly mean","Monthly 1/2 hourly maximum","Monthly daily mean","Monthly daily maximum"]
[null,null,null,null,null,null,null,null,null,"A2","Jan",0.8,5.4,0.8,1.1000000000000001]
[null,null,null,null,null,null,null,null,null,null,"Feb",0.9,2.2999999999999998,0.9,1.1000000000000001]
[null,null,null,null,null,null,null,null,null,null,"Mar",0.9,45.4,0.9,1.9]
[null,null,null,null,null,null,null,null,null,null,"Apr",0.8,11.6,0.8,0.9]
[null,null,null,null,null,null,null,null,null,null,"May",0.9,4.8,0.9,1.1000000000000001]
[null,null,null,null,null,null,null,null,null,null,"Jun",0.8,1.9,0.8,1]
[null,null,null,null,null,null,null,null,null,null,"Jul",0.9,7.2,0.7,1.4]
[null,null,null,null,null,null,null,null,null,null,"Aug",0.9,18.600000000000001,0.8,1.3]
[null,null,null,null,null,null,null,null,null,null,"Sep",0.7,5.4,0.7,1]
[null,null,null,null,null,null,null,null,null,null,"Oct",0.5,6.5,0.4,0.8]
[null,null,null,null,null,null,null,null,null,null,"Nov",0.4,17.600000000000001,0.4,0.9]
[null,null,null,null,null,null,null,null,null,null,"Dec",0.5,14.6,0.4,0.7]
[null,null,null,null,null,null,null,null,null,null,"Annual",{"$f":"AVERAGE(L22:L33)","v":0.75000000000000011},{"$f":"MAX(M22:M33)","v":45.4},{"$f":"AVERAGE(N22:N33)","v":0.70833333333333348},{"$f":"MAX(O22:O33)","v":1.9}]
[]
[null,null,null,null,null,null,null,null,null,{"$f":"+A6","v":2021},"mg/Nm3","Monthly 1/2 hourly mean","Monthly 1/2 hourly maximum","Monthly daily mean","Monthly daily maximum"]
[null,null,null,null,null,null,null,null,null,"A3","Jan"]
[null,null,null,null,null,null,null,null,null,null,"Feb"]
[null,null,null,null,null,null,null,null,null,null,"Mar"]
[null,null,null,null,null,null,null,null,null,null,"Apr"]
[null,null,null,null,null,null,null,null,null,null,"May"]
[null,null,null,null,null,null,null,null,null,null,"Jun"]
[null,null,null,null,null,null,null,null,null,null,"Jul"]
[null,null,null,null,null,null,null,null,null,null,"Aug"]
[null,null,null,null,null,null,null,null,null,null,"Sep"]
[null,null,null,null,null,null,null,null,null,null,"Oct"]
[null,null,null,null,null,null,null,null,null,null,"Nov"]
["Comments :",null,null,null,null,null,null,null,null,null,"Dec"]
[null,null,null,null,null,null,null,null,null,null,"Annual",{"$f":"AVERAGE(L37:L48)","v":{"$error":"#DIV/0!"}},{"$f":"MAX(M37:M48)","v":0},{"$f":"AVERAGE(N37:N48)","v":{"$error":"#DIV/0!"}},{"$f":"MAX(O37:O48)","v":0}]
[]
[null,null,null,null,null,null,null,null,null,{"$f":"+A6","v":2021},"mg/Nm3","Monthly 1/2 hourly mean","Monthly 1/2 hourly maximum","Monthly daily mean","Monthly daily maximum"]
[null,null,null,null,null,null,null,null,null,"A4","Jan"]
[null,null,null,null,null,null,null,null,null,null,"Feb"]
[null,null,null,null,null,null,null,null,null,null,"Mar"]
[null,null,null,null,null,null,null,null,null,null,"Apr"]
[null,null,null,null,null,null,null,null,null,null,"May"]
[null,null,null,null,null,null,null,null,null,null,"Jun"]
[null,null,null,null,null,null,null,null,null,null,"Jul"]
[null,null,null,null,null,null,null,null,null,null,"Aug"]
[null,null,null,null,null,null,null,null,null,null,"Sep"]
[null,null,null,null,null,null,null,null,null,null,"Oct"]
[null,null,null,null,null,null,null,null,null,null,"Nov"]
[null,null,null,null,null,null,null,null,null,null,"Dec"]
[null,null,null,null,null,null,null,null,null,null,"Annual",{"$f":"AVERAGE(L52:L63)","v":{"$error":"#DIV/0!"}},{"$f":"MAX(M52:M63)","v":0},{"$f":"AVERAGE(N52:N63)","v":{"$error":"#DIV/0!"}},{"$f":"MAX(O52:O63)","v":0}]
[]
[null,null,null,null,null,null,null,null,null,{"$f":"+A6","v":2021},"mg/Nm3","Monthly 1/2 hourly mean","Monthly 1/2 hourly maximum","Monthly daily mean","Monthly daily maximum"]
[null,null,null,null,null,null,null,null,null,"A5","Jan"]
[null,null,null,null,null,null,null,null,null,null,"Feb"]
[null,null,null,null,null,null,null,null,null,null,"Mar"]
[null,null,null,null,null,null,null,null,null,null,"Apr"]
[null,null,null,null,null,null,null,null,null,null,"May"]
[null,null,null,null,null,null,null,null,null,null,"Jun"]
[null,null,null,null,null,null,null,null,null,null,"Jul"]
[null,null,null,null,null,null,null,null,null,null,"Aug"]
[null,null,null,null,null,null,null,null,null,null,"Sep"]
[null,null,null,null,null,null,null,null,null,null,"Oct"]
[null,null,null,null,null,null,null,null,null,null,"Nov"]
[null,null,null,null,null,null,null,null,null,null,"Dec"]
[null,null,null,null,null,null,null,null,null,null,"Annual",{"$f":"AVERAGE(L67:L78)","v":{"$error":"#DIV/0!"}},{"$f":"MAX(M67:M78)","v":0},{"$f":"AVERAGE(N67:N78)","v":{"$error":"#DIV/0!"}},{"$f":"MAX(O67:O78)","v":0}]

{"sheet":"Particulates","index":17,"n_rows":79,"n_cols":17,"rows_kept":79,"cut":false,"hidden":false,"merged":[[3,16,7,18],[9,16,11,18],[12,16,15,18],[66,9,78,9],[4,1,4,3],[4,4,4,6],[4,9,4,14],[6,9,18,9],[21,9,33,9],[36,9,48,9],[47,0,47,6],[48,0,51,6],[51,9,63,9]]}
[{"$f":"+'Cover Page'!$B$29","v":"Annual Performance Report 2021"},null,null,null,{"$f":"+'Cover Page'!$B$33","v":"Eastcroft Energy from Waste Plant"}]
[]
["Monitoring of Particulate matter emissions",null,null,"Whole Installation",null,null,"See  Notes in Cell Q3",null,null,{"$f":"+A3","v":"Monitoring of Particulate matter emissions"},null,null,null,"Per Combustion Line",null,null,"Notes:"]
[null,null,null,null,null,null,null,null,null,null,null,null,null,null,null,null,"User to add logic to complete Whole installation, Table A5:G18. From the data in Per Combustion Line, Table J6:O79, subject to No. of lines installed"]
["mg/Nm3","1/2 Hourly Reference Periods",null,null,"Daily Reference Periods"]
[{"$f":"+'Cover Page'!C39","v":2021},"1/2 hourly PM ELV","Monthly 1/2 hourly mean","Highest 1/2 hourly maximum","Daily PM ELV","Monthly daily mean","Highest daily maximum",null,null,{"$f":"+A6","v":2021},"mg/Nm3","Monthly 1/2 hourly mean","Monthly 1/2 hourly maximum","Monthly daily mean","Monthly daily maximum"]
["Jan",30,{"$f":"(L7+L22)/2","v":0.3},{"$f":"MAX(M7,M22)","v":0.6},10,{"$f":"(N7+N22)/2","v":0.25},{"$f":"MAX(O7,O22)","v":0.3},null,null,"A1","Jan",0.3,0.5,0.3,0.3]
["Feb",30,{"$f":"(L8+L23)/2","v":0.5},{"$f":"MAX(M8,M23)","v":5.9},10,{"$f":"(N8+N23)/2","v":0.5},{"$f":"MAX(O8,O23)","v":1.6},null,null,null,"Feb",0.5,5.9,0.5,1.6]
["Mar",30,0.5,1.8,10,0.45,0.9,null,null,null,"Mar",0.4,1.1000000000000001,0.4,0.8,null,"Whole Installation table A5:G18:"]
["Apr",30,0.5,1.7,10,0.45,0.7,null,null,null,"Apr",0.5,0.8,0.4,0.5,null,"Mean: for 1/2 hourly and daily periods calculate mean of values across all operational combustion lines for the month"]
["May",30,0.55000000000000004,1.1000000000000001,10,0.5,0.8,null,null,null,"May",0.4,0.7,0.4,0.5]
["Jun",30,0.5,0.8,10,0.45,0.6,null,null,null,"Jun",0.4,0.6,0.4,0.5]
["Jul",30,0.3,5.2,10,0.1,0.5,null,null,null,"Jul",0.3,5.2,0,0.3,null,"Maximum: for 1/2 hourly and daily periods use the highest value across all operational combustion lines for the month"]
["Aug",30,0.35,1,10,0.30000000000000004,0.7,null,null,null,"Aug",0.4,1,0.4,0.7]
["Sep",30,0.35,2,10,0.35,0.6,null,null,null,"Sep",0.4,2,0.4,0.6]
["Oct",30,0.4,3.4,10,0.35,1.1000000000000001,null,null,null,"Oct",0.5,3.4,0.4,1.1000000000000001]
["Nov",30,0.4,0.9,10,0.3,0.6,null,null,null,"Nov",0.4,0.9,0.3,0.6]
["Dec",30,0.45,13.1,10,0.45,2,null,null,null,"Dec",0.4,5.0999999999999996,0.4,0.8]
[null,null,null,null,null,null,null,null,null,null,"Annual",{"$f":"AVERAGE(L7:L18)","v":0.40833333333333338},{"$f":"MAX(M7:M18)","v":5.9},{"$f":"AVERAGE(N7:N18)","v":0.35833333333333334},{"$f":"MAX(O7:O18)","v":1.6}]
[]
[null,null,null,null,null,null,null,null,null,{"$f":"+A6","v":2021},"mg/Nm3","Monthly 1/2 hourly mean","Monthly 1/2 hourly maximum","Monthly daily mean","Monthly daily maximum"]
[null,null,null,null,null,null,null,null,null,"A2","Jan",0.3,0.6,0.2,0.3]
[null,null,null,null,null,null,null,null,null,null,"Feb",0.5,1.6,0.5,1]
[null,null,null,null,null,null,null,null,null,null,"Mar",0.6,1.8,0.5,0.9]
[null,null,null,null,null,null,null,null,null,null,"Apr",0.5,1.7,0.5,0.7]
[null,null,null,null,null,null,null,null,null,null,"May",0.7,1.1000000000000001,0.6,0.8]
[null,null,null,null,null,null,null,null,null,null,"Jun",0.6,0.8,0.5,0.6]
[null,null,null,null,null,null,null,null,null,null,"Jul",0.3,2.5,0.2,0.5]
[null,null,null,null,null,null,null,null,null,null,"Aug",0.3,0.4,0.2,0.4]
[null,null,null,null,null,null,null,null,null,null,"Sep",0.3,0.6,0.3,0.3]
[null,null,null,null,null,null,null,null,null,null,"Oct",0.3,3,0.3,0.4]
[null,null,null,null,null,null,null,null,null,null,"Nov",0.4,0.6,0.3,0.4]
[null,null,null,null,null,null,null,null,null,null,"Dec",0.5,13.1,0.5,2]
[null,null,null,null,null,null,null,null,null,null,"Annual",{"$f":"AVERAGE(L22:L33)","v":0.44166666666666665},{"$f":"MAX(M22:M33)","v":13.1},{"$f":"AVERAGE(N22:N33)","v":0.3833333333333333},{"$f":"MAX(O22:O33)","v":2}]
[]
[null,null,null,null,null,null,null,null,null,{"$f":"+A6","v":2021},"mg/Nm3","Monthly 1/2 hourly mean","Monthly 1/2 hourly maximum","Monthly daily mean","Monthly daily maximum"]
[null,null,null,null,null,null,null,null,null,"A3","Jan"]
[null,null,null,null,null,null,null,null,null,null,"Feb"]
[null,null,null,null,null,null,null,null,null,null,"Mar"]
[null,null,null,null,null,null,null,null,null,null,"Apr"]
[null,null,null,null,null,null,null,null,null,null,"May"]
[null,null,null,null,null,null,null,null,null,null,"Jun"]
[null,null,null,null,null,null,null,null,null,null,"Jul"]
[null,null,null,null,null,null,null,null,null,null,"Aug"]
[null,null,null,null,null,null,null,null,null,null,"Sep"]
[null,null,null,null,null,null,null,null,null,null,"Oct"]
[null,null,null,null,null,null,null,null,null,null,"Nov"]
["Comments :",null,null,null,null,null,null,null,null,null,"Dec"]
[null,null,null,null,null,null,null,null,null,null,"Annual",{"$f":"AVERAGE(L37:L48)","v":{"$error":"#DIV/0!"}},{"$f":"MAX(M37:M48)","v":0},{"$f":"AVERAGE(N37:N48)","v":{"$error":"#DIV/0!"}},{"$f":"MAX(O37:O48)","v":0}]
[]
[null,null,null,null,null,null,null,null,null,{"$f":"+A6","v":2021},"mg/Nm3","Monthly 1/2 hourly mean","Monthly 1/2 hourly maximum","Monthly daily mean","Monthly daily maximum"]
[null,null,null,null,null,null,null,null,null,"A4","Jan"]
[null,null,null,null,null,null,null,null,null,null,"Feb"]
[null,null,null,null,null,null,null,null,null,null,"Mar"]
[null,null,null,null,null,null,null,null,null,null,"Apr"]
[null,null,null,null,null,null,null,null,null,null,"May"]
[null,null,null,null,null,null,null,null,null,null,"Jun"]
[null,null,null,null,null,null,null,null,null,null,"Jul"]
[null,null,null,null,null,null,null,null,null,null,"Aug"]
[null,null,null,null,null,null,null,null,null,null,"Sep"]
[null,null,null,null,null,null,null,null,null,null,"Oct"]
[null,null,null,null,null,null,null,null,null,null,"Nov"]
[null,null,null,null,null,null,null,null,null,null,"Dec"]
[null,null,null,null,null,null,null,null,null,null,"Annual",{"$f":"AVERAGE(L52:L63)","v":{"$error":"#DIV/0!"}},{"$f":"MAX(M52:M63)","v":0},{"$f":"AVERAGE(N52:N63)","v":{"$error":"#DIV/0!"}},{"$f":"MAX(O52:O63)","v":0}]
[]
[null,null,null,null,null,null,null,null,null,{"$f":"+A6","v":2021},"mg/Nm3","Monthly 1/2 hourly mean","Monthly 1/2 hourly maximum","Monthly daily mean","Monthly daily maximum"]
[null,null,null,null,null,null,null,null,null,"A5","Jan"]
[null,null,null,null,null,null,null,null,null,null,"Feb"]
[null,null,null,null,null,null,null,null,null,null,"Mar"]
[null,null,null,null,null,null,null,null,null,null,"Apr"]
[null,null,null,null,null,null,null,null,null,null,"May"]
[null,null,null,null,null,null,null,null,null,null,"Jun"]
[null,null,null,null,null,null,null,null,null,null,"Jul"]
[null,null,null,null,null,null,null,null,null,null,"Aug"]
[null,null,null,null,null,null,null,null,null,null,"Sep"]
[null,null,null,null,null,null,null,null,null,null,"Oct"]
[null,null,null,null,null,null,null,null,null,null,"Nov"]
[null,null,null,null,null,null,null,null,null,null,"Dec"]
[null,null,null,null,null,null,null,null,null,null,"Annual",{"$f":"AVERAGE(L67:L78)","v":{"$error":"#DIV/0!"}},{"$f":"MAX(M67:M78)","v":0},{"$f":"AVERAGE(N67:N78)","v":{"$error":"#DIV/0!"}},{"$f":"MAX(O67:O78)","v":0}]

{"sheet":"CO 95% 10 min","index":18,"n_rows":79,"n_cols":19,"rows_kept":79,"cut":false,"hidden":false,"merged":[[3,18,7,20],[9,18,11,20],[12,18,15,20],[66,10,78,10],[4,1,4,4],[4,5,4,7],[4,10,4,16],[6,10,18,10],[21,10,33,10],[36,10,48,10],[47,0,47,7],[48,0,51,7],[51,10,63,10]]}
[{"$f":"+'Cover Page'!$B$29","v":"Annual Performance Report 2021"},null,null,null,{"$f":"+'Cover Page'!$B$33","v":"Eastcroft Energy from Waste Plant"}]
[]
["Monitoring of Carbon Monoxide (10-minute avg)",null,null,null,"Whole Installation",null,null,"See  Notes in Cell S3",null,{"$f":"+A3","v":"Monitoring of Carbon Monoxide (10-minute avg)"},null,null,null,null,"Per Combustion Line",null,"Notes:",null,"Notes:"]
[null,null,null,null,null,null,null,null,null,null,null,null,null,null,null,null,null,null,"User to add logic to complete Whole installation, Table A5:H18. From the data in Per Combustion Line, Table K6:Q79, subject to No. of lines installed"]
["mg/Nm3","10-minute Reference Periods",null,null,null,"Daily Reference Periods"]
[{"$f":"+'Cover Page'!C39","v":2021},"95%ile 10-min avg CO ELV","95%ile 10-min avg maximum","Monthly CO 10-min avg mean","10-min avg maximum","Daily CO ELV","Monthly daily mean","Highest daily maximum",null,null,{"$f":"+A6","v":2021},"mg/Nm3","95%ile 10-min avg maximum","Monthly CO 10-min avg mean","10-min avg maximum","Monthly daily mean","Monthly daily maximum"]
["Jan",150,{"$f":"MAX(M7,M22)","v":21.3},{"$f":"(N7+N22)/2","v":8.65},{"$f":"MAX(O7,O22)","v":240.4},50,{"$f":"(P7+P22)/2","v":8.65},{"$f":"MAX(Q7,Q22)","v":13.2},null,null,"A1","Jan",21.3,9,98.5,9,13.2]
["Feb",{"$f":"+B7","v":150},{"$f":"MAX(M8,M23)","v":19.2},{"$f":"(N8+N23)/2","v":7.95},{"$f":"MAX(O8,O23)","v":129},{"$f":"+F7","v":50},{"$f":"(P8+P23)/2","v":7.9},{"$f":"MAX(Q8,Q23)","v":11.2},null,null,null,"Feb",17.8,7.5,129,7.4,9.5]
["Mar",{"$f":"+B8","v":150},19,8.3999999999999986,354.9,{"$f":"+F8","v":50},8.3000000000000007,12,null,null,null,"Mar",18.5,8.1999999999999993,354.9,8.1,10.3,null,"Whole Installation table A5:H18:"]
["Apr",150,22.6,9.5500000000000007,110.9,50,9.4499999999999993,16,null,null,null,"Apr",22.6,10.6,66.900000000000006,10.5,16,null,"Mean: for 10-min and daily periods use average of all operational combustion lines."]
["May",150,39.299999999999997,11,487,50,11,17.3,null,null,null,"May",39.299999999999997,13.2,299.5,13.2,17.3]
["Jun",150,22.1,10.4,255.5,50,10.350000000000001,14.3,null,null,null,"Jun",22.1,12.3,255.5,12.3,14.3]
["Jul",150,36.4,8.8999999999999986,117.6,50,8.4,15.4,null,null,null,"Jul",18.3,9.6,101.2,9,11.2,null,"Maximum: for 10-min and daily periods use the highest of all operational combustion lines in any month."]
["Aug",150,22.9,6.55,114,50,6.5,10.3,null,null,null,"Aug",21.4,6.6,114,6.6,10.1]
["Sep",150,18.5,5.6,164.8,50,5.5500000000000007,8.4,null,null,null,"Sep",16.2,5.7,164.8,5.7,8.4]
["Oct",150,19.5,5.0999999999999996,131.1,50,5.0999999999999996,8.5,null,null,null,"Oct",19.5,4.8,119.1,4.8,8.5]
["Nov",150,16.399999999999999,5.2,208.1,50,5.0999999999999996,7.8,null,null,null,"Nov",12.9,4.9000000000000004,76.400000000000006,4.8,6.8]
["Dec",150,13.6,4.9000000000000004,244.3,50,4.8499999999999996,7.5,null,null,null,"Dec",12.2,4.5,244.3,4.5,6.7]
[null,null,null,null,null,null,null,null,null,null,null,"Annual",{"$f":"AVERAGE(M7:M18)","v":20.175000000000001},null,{"$f":"MAX(O7:O18)","v":354.9},{"$f":"AVERAGE(P7:P18)","v":7.9916666666666663},{"$f":"MAX(Q7:Q18)","v":17.3}]
[]
[null,null,null,null,null,null,null,null,null,null,{"$f":"+A6","v":2021},"mg/Nm3","95%ile 10-min avg maximum","Monthly CO 10-min avg mean","10-min avg maximum","Monthly daily mean","Monthly daily maximum"]
[null,null,null,null,null,null,null,null,null,null,"A2","Jan",16.899999999999999,8.3000000000000007,240.4,8.3000000000000007,10.6]
[null,null,null,null,null,null,null,null,null,null,null,"Feb",19.2,8.4,43.5,8.4,11.2]
[null,null,null,null,null,null,null,null,null,null,null,"Mar",19,8.6,167.2,8.5,12]
[null,null,null,null,null,null,null,null,null,null,null,"Apr",19.3,8.5,110.9,8.4,11.4]
[null,null,null,null,null,null,null,null,null,null,null,"May",25.6,8.8000000000000007,487,8.8000000000000007,13.5]
[null,null,null,null,null,null,null,null,null,null,null,"Jun",21,8.5,52.6,8.4,12.1]
[null,null,null,null,null,null,null,null,null,null,null,"Jul",36.4,8.1999999999999993,117.6,7.8,15.4]
[null,null,null,null,null,null,null,null,null,null,null,"Aug",22.9,6.5,75,6.4,10.3]
[null,null,null,null,null,null,null,null,null,null,null,"Sep",18.5,5.5,77,5.4,8.3000000000000007]
[null,null,null,null,null,null,null,null,null,null,null,"Oct",15.2,5.4,131.1,5.4,8.5]
[null,null,null,null,null,null,null,null,null,null,null,"Nov",16.399999999999999,5.5,208.1,5.4,7.8]
[null,null,null,null,null,null,null,null,null,null,null,"Dec",13.6,5.3,217.4,5.2,7.5]
[null,null,null,null,null,null,null,null,null,null,null,"Annual",{"$f":"AVERAGE(M22:M33)","v":20.333333333333332},null,{"$f":"MAX(O22:O33)","v":487},{"$f":"AVERAGE(P22:P33)","v":7.200000000000002},{"$f":"MAX(Q22:Q33)","v":15.4}]
[]
[null,null,null,null,null,null,null,null,null,null,{"$f":"+A6","v":2021},"mg/Nm3","95%ile 10-min avg maximum","Monthly CO 10-min avg mean","10-min avg maximum","Monthly daily mean","Monthly daily maximum"]
[null,null,null,null,null,null,null,null,null,null,"A3","Jan"]
[null,null,null,null,null,null,null,null,null,null,null,"Feb"]
[null,null,null,null,null,null,null,null,null,null,null,"Mar"]
[null,null,null,null,null,null,null,null,null,null,null,"Apr"]
[null,null,null,null,null,null,null,null,null,null,null,"May"]
[null,null,null,null,null,null,null,null,null,null,null,"Jun"]
[null,null,null,null,null,null,null,null,null,null,null,"Jul"]
[null,null,null,null,null,null,null,null,null,null,null,"Aug"]
[null,null,null,null,null,null,null,null,null,null,null,"Sep"]
[null,null,null,null,null,null,null,null,null,null,null,"Oct"]
[null,null,null,null,null,null,null,null,null,null,null,"Nov"]
["Comments :",null,null,null,null,null,null,null,null,null,null,"Dec"]
["Environment Agency explanatory note: The 10-minute average ELV is based on the “95th percentile”. In this case this means that 95% of the 10 minute averages in the relevant 24-hour period (i.e. 137) must be below 150 mg/Nm3, and 5% (i.e. 7) are allowed to be any value above 150 mg/Nm3. Whilst we expect operators to minimise CO emissions at all times, it is perfectly acceptable for the value of the maximum 10-minute average to be above 150 mg/Nm3, provided the 95th percentile ELV has been met for that period. ",null,null,null,null,null,null,null,null,null,null,"Annual",{"$f":"AVERAGE(M37:M48)","v":{"$error":"#DIV/0!"}},null,{"$f":"MAX(O37:O48)","v":0},{"$f":"AVERAGE(P37:P48)","v":{"$error":"#DIV/0!"}},{"$f":"MAX(Q37:Q48)","v":0}]
[]
[null,null,null,null,null,null,null,null,null,null,{"$f":"+A6","v":2021},"mg/Nm3","95%ile 10-min avg maximum","Monthly CO 10-min avg mean","10-min avg maximum","Monthly daily mean","Monthly daily maximum"]
[null,null,null,null,null,null,null,null,null,null,"A4","Jan"]
[null,null,null,null,null,null,null,null,null,null,null,"Feb"]
[null,null,null,null,null,null,null,null,null,null,null,"Mar"]
[null,null,null,null,null,null,null,null,null,null,null,"Apr"]
[null,null,null,null,null,null,null,null,null,null,null,"May"]
[null,null,null,null,null,null,null,null,null,null,null,"Jun"]
[null,null,null,null,null,null,null,null,null,null,null,"Jul"]
[null,null,null,null,null,null,null,null,null,null,null,"Aug"]
[null,null,null,null,null,null,null,null,null,null,null,"Sep"]
[null,null,null,null,null,null,null,null,null,null,null,"Oct"]
[null,null,null,null,null,null,null,null,null,null,null,"Nov"]
[null,null,null,null,null,null,null,null,null,null,null,"Dec"]
[null,null,null,null,null,null,null,null,null,null,null,"Annual",{"$f":"AVERAGE(M52:M63)","v":{"$error":"#DIV/0!"}},null,{"$f":"MAX(O52:O63)","v":0},{"$f":"AVERAGE(P52:P63)","v":{"$error":"#DIV/0!"}},{"$f":"MAX(Q52:Q63)","v":0}]
[]
[null,null,null,null,null,null,null,null,null,null,{"$f":"+A6","v":2021},"mg/Nm3","95%ile 10-min avg maximum","Monthly CO 10-min avg mean","10-min avg maximum","Monthly daily mean","Monthly daily maximum"]
[null,null,null,null,null,null,null,null,null,null,"A5","Jan"]
[null,null,null,null,null,null,null,null,null,null,null,"Feb"]
[null,null,null,null,null,null,null,null,null,null,null,"Mar"]
[null,null,null,null,null,null,null,null,null,null,null,"Apr"]
[null,null,null,null,null,null,null,null,null,null,null,"May"]
[null,null,null,null,null,null,null,null,null,null,null,"Jun"]
[null,null,null,null,null,null,null,null,null,null,null,"Jul"]
[null,null,null,null,null,null,null,null,null,null,null,"Aug"]
[null,null,null,null,null,null,null,null,null,null,null,"Sep"]
[null,null,null,null,null,null,null,null,null,null,null,"Oct"]
[null,null,null,null,null,null,null,null,null,null,null,"Nov"]
[null,null,null,null,null,null,null,null,null,null,null,"Dec"]
[null,null,null,null,null,null,null,null,null,null,null,"Annual",{"$f":"AVERAGE(M67:M78)","v":{"$error":"#DIV/0!"}},null,{"$f":"MAX(O67:O78)","v":0},{"$f":"AVERAGE(P67:P78)","v":{"$error":"#DIV/0!"}},{"$f":"MAX(Q67:Q78)","v":0}]

{"sheet":"Sheet1","index":19,"n_rows":0,"n_cols":0,"rows_kept":0,"cut":false,"hidden":false,"merged":[]}

{"sheet":"NH3","index":20,"n_rows":79,"n_cols":17,"rows_kept":79,"cut":false,"hidden":false,"merged":[[3,16,7,18],[9,16,11,18],[12,16,15,18],[66,9,78,9],[4,1,4,3],[4,4,4,6],[4,9,4,14],[6,9,18,9],[21,9,33,9],[36,9,48,9],[47,0,47,6],[48,0,51,6],[51,9,63,9]]}
[{"$f":"+'Cover Page'!$B$29","v":"Annual Performance Report 2021"},null,null,null,{"$f":"+'Cover Page'!$B$33","v":"Eastcroft Energy from Waste Plant"}]
[]
["Monitoring of Ammnonia emissions ",null,null,"Whole Installation",null,null,"See  Notes in Cell Q3",null,null,{"$f":"+A3","v":"Monitoring of Ammnonia emissions "},null,null,null,"Per Combustion Line",null,null,"Notes:"]
[null,null,null,null,null,null,null,null,null,null,null,null,null,null,null,null,"User to add logic to complete Whole installation, Table A5:G18. From the data in Per Combustion Line, Table J6:O79, subject to No. of lines installed"]
["mg/Nm3","1/2 Hourly Reference Periods",null,null,"Daily Reference Periods"]
[{"$f":"+'Cover Page'!C39","v":2021},"1/2 hourly NH3 ELV","Monthly 1/2 hourly mean","Highest 1/2 hourly maximum","Daily NH3 ELV","Monthly daily mean","Highest daily maximum",null,null,{"$f":"+A6","v":2021},"mg/Nm3","Monthly 1/2 hourly mean","Monthly 1/2 hourly maximum","Monthly daily mean","Monthly daily maximum"]
["Jan",0,{"$f":"(L7+L22)/2","v":0.9},{"$f":"MAX(M7,M22)","v":7.8},10,{"$f":"(N7+N22)/2","v":0.9},{"$f":"MAX(O7,O22)","v":2.5},null,null,"A1","Jan",0.8,5.8,0.8,1.8]
["Feb",{"$f":"+B7","v":0},{"$f":"(L8+L23)/2","v":1.3},{"$f":"MAX(M8,M23)","v":7.4},{"$f":"+E7","v":10},{"$f":"(N8+N23)/2","v":1.3},{"$f":"MAX(O8,O23)","v":2.2000000000000002},null,null,null,"Feb",1.3,7,1.3,2.2000000000000002]
["Mar",{"$f":"+B8","v":0},0.4,6.4,{"$f":"+E8","v":10},0.4,0.9,null,null,null,"Mar",0.5,6.4,0.5,0.9,null,"Whole Installation table A5:G18:"]
["Apr",0,0.3,4.9000000000000004,10,0.3,1.4,null,null,null,"Apr",0.3,4.9000000000000004,0.3,0.8,null,"Mean: for 1/2 hourly and daily periods calculate mean of values across all operational combustion lines for the month"]
["May",0,0.5,6.2,10,0.4,1.2,null,null,null,"May",0.5,5.2,0.4,0.9]
["Jun",0,0.44999999999999996,3.4,10,0.4,0.9,null,null,null,"Jun",0.6,3.4,0.5,0.9]
["Jul",0,6.15,73.400000000000006,10,5.35,26.5,null,null,null,"Jul",4.9000000000000004,17.600000000000001,4.2,6,null,"Maximum: for 1/2 hourly and daily periods use the highest value across all operational combustion lines for the month"]
["Aug",0,0.8,7.5,10,0.75,1.5,null,null,null,"Aug",1,4.3,0.9,1.5]
["Sep",0,0.6,4.2,10,0.6,1,null,null,null,"Sep",0.7,3.6,0.7,1]
["Oct",0,0.8,8.3000000000000007,10,0.75,2,null,null,null,"Oct",0.8,4.7,0.7,2]
["Nov",0,0.7,2.8,10,0.64999999999999991,0.9,null,null,null,"Nov",0.7,2.8,0.7,0.9]
["Dec",0,0.7,11.8,10,0.6,1.1000000000000001,null,null,null,"Dec",0.7,6.5,0.6,1]
[null,null,null,null,null,null,null,null,null,null,"Annual",{"$f":"AVERAGE(L7:L18)","v":1.0666666666666667},{"$f":"MAX(M7:M18)","v":17.600000000000001},{"$f":"AVERAGE(N7:N18)","v":0.96666666666666645},{"$f":"MAX(O7:O18)","v":6}]
[]
[null,null,null,null,null,null,null,null,null,{"$f":"+A6","v":2021},"mg/Nm3","Monthly 1/2 hourly mean","Monthly 1/2 hourly maximum","Monthly daily mean","Monthly daily maximum"]
[null,null,null,null,null,null,null,null,null,"A2","Jan",1,7.8,1,2.5]
[null,null,null,null,null,null,null,null,null,null,"Feb",1.3,7.4,1.3,2.2000000000000002]
[null,null,null,null,null,null,null,null,null,null,"Mar",0.3,5.2,0.3,0.9]
[null,null,null,null,null,null,null,null,null,null,"Apr",0.3,3.1,0.3,1.4]
[null,null,null,null,null,null,null,null,null,null,"May",0.5,6.2,0.4,1.2]
[null,null,null,null,null,null,null,null,null,null,"Jun",0.3,3.1,0.3,0.7]
[null,null,null,null,null,null,null,null,null,null,"Jul",7.4,73.400000000000006,6.5,26.5]
[null,null,null,null,null,null,null,null,null,null,"Aug",0.6,7.5,0.6,1.5]
[null,null,null,null,null,null,null,null,null,null,"Sep",0.5,4.2,0.5,0.7]
[null,null,null,null,null,null,null,null,null,null,"Oct",0.8,8.3000000000000007,0.8,1.8]
[null,null,null,null,null,null,null,null,null,null,"Nov",0.7,2.2999999999999998,0.6,0.8]
[null,null,null,null,null,null,null,null,null,null,"Dec",0.7,11.8,0.6,1.1000000000000001]
[null,null,null,null,null,null,null,null,null,null,"Annual",{"$f":"AVERAGE(L22:L33)","v":1.2},{"$f":"MAX(M22:M33)","v":73.400000000000006},{"$f":"AVERAGE(N22:N33)","v":1.0999999999999999},{"$f":"MAX(O22:O33)","v":26.5}]
[]
[null,null,null,null,null,null,null,null,null,{"$f":"+A6","v":2021},"mg/Nm3","Monthly 1/2 hourly mean","Monthly 1/2 hourly maximum","Monthly daily mean","Monthly daily maximum"]
[null,null,null,null,null,null,null,null,null,"A3","Jan"]
[null,null,null,null,null,null,null,null,null,null,"Feb"]
[null,null,null,null,null,null,null,null,null,null,"Mar"]
[null,null,null,null,null,null,null,null,null,null,"Apr"]
[null,null,null,null,null,null,null,null,null,null,"May"]
[null,null,null,null,null,null,null,null,null,null,"Jun"]
[null,null,null,null,null,null,null,null,null,null,"Jul"]
[null,null,null,null,null,null,null,null,null,null,"Aug"]
[null,null,null,null,null,null,null,null,null,null,"Sep"]
[null,null,null,null,null,null,null,null,null,null,"Oct"]
[null,null,null,null,null,null,null,null,null,null,"Nov"]
["Comments :",null,null,null,null,null,null,null,null,null,"Dec"]
["An indicated ELV value of zero in the table above means that no ammonia limit is set in the permit.  ",null,null,null,null,null,null,null,null,null,"Annual",{"$f":"AVERAGE(L37:L48)","v":{"$error":"#DIV/0!"}},{"$f":"MAX(M37:M48)","v":0},{"$f":"AVERAGE(N37:N48)","v":{"$error":"#DIV/0!"}},{"$f":"MAX(O37:O48)","v":0}]
[]
[null,null,null,null,null,null,null,null,null,{"$f":"+A6","v":2021},"mg/Nm3","Monthly 1/2 hourly mean","Monthly 1/2 hourly maximum","Monthly daily mean","Monthly daily maximum"]
[null,null,null,null,null,null,null,null,null,"A4","Jan"]
[null,null,null,null,null,null,null,null,null,null,"Feb"]
[null,null,null,null,null,null,null,null,null,null,"Mar"]
[null,null,null,null,null,null,null,null,null,null,"Apr"]
[null,null,null,null,null,null,null,null,null,null,"May"]
[null,null,null,null,null,null,null,null,null,null,"Jun"]
[null,null,null,null,null,null,null,null,null,null,"Jul"]
[null,null,null,null,null,null,null,null,null,null,"Aug"]
[null,null,null,null,null,null,null,null,null,null,"Sep"]
[null,null,null,null,null,null,null,null,null,null,"Oct"]
[null,null,null,null,null,null,null,null,null,null,"Nov"]
[null,null,null,null,null,null,null,null,null,null,"Dec"]
[null,null,null,null,null,null,null,null,null,null,"Annual",{"$f":"AVERAGE(L52:L63)","v":{"$error":"#DIV/0!"}},{"$f":"MAX(M52:M63)","v":0},{"$f":"AVERAGE(N52:N63)","v":{"$error":"#DIV/0!"}},{"$f":"MAX(O52:O63)","v":0}]
[]
[null,null,null,null,null,null,null,null,null,{"$f":"+A6","v":2021},"mg/Nm3","Monthly 1/2 hourly mean","Monthly 1/2 hourly maximum","Monthly daily mean","Monthly daily maximum"]
[null,null,null,null,null,null,null,null,null,"A5","Jan"]
[null,null,null,null,null,null,null,null,null,null,"Feb"]
[null,null,null,null,null,null,null,null,null,null,"Mar"]
[null,null,null,null,null,null,null,null,null,null,"Apr"]
[null,null,null,null,null,null,null,null,null,null,"May"]
[null,null,null,null,null,null,null,null,null,null,"Jun"]
[null,null,null,null,null,null,null,null,null,null,"Jul"]
[null,null,null,null,null,null,null,null,null,null,"Aug"]
[null,null,null,null,null,null,null,null,null,null,"Sep"]
[null,null,null,null,null,null,null,null,null,null,"Oct"]
[null,null,null,null,null,null,null,null,null,null,"Nov"]
[null,null,null,null,null,null,null,null,null,null,"Dec"]
[null,null,null,null,null,null,null,null,null,null,"Annual",{"$f":"AVERAGE(L67:L78)","v":{"$error":"#DIV/0!"}},{"$f":"MAX(M67:M78)","v":0},{"$f":"AVERAGE(N67:N78)","v":{"$error":"#DIV/0!"}},{"$f":"MAX(O67:O78)","v":0}]